Workbook

Sheet Умная Т (hidden)
C1: Калужская область по состоянию на 01.12.2022 г. | D1: =SUM(Таблица1[Оплачено случаев]) -> 51026 | F1: =SUM(Таблица1[План ДВН, чел.]) -> 47862 | I1: Выполнение плана, % | J1: =ROUND(D1/F1,3) -> 1.066 | P1: =(K24+P24+U24+Z24+AE24+AJ24+AO24+AT24+AY24+BD24+BI24+BN24)/(J24+O24+T24+Y24+AD24+AI24+AN24+AS24+AX24+BC24+BH24+BM24)*1000 -> 2043.546951
C2: Средний тариф ДВН | D2: =P1 -> 2043.546951 | K2: ФАКТ | L2: ПЛАН | O2: ФАКТ | Q2: ПЛАН | T2: ФАКТ | V2: ПЛАН | Y2: ФАКТ | AA2: ПЛАН | AD2: ФАКТ | AF2: ПЛАН | AI2: ФАКТ | AK2: ПЛАН | AN2: ФАКТ | AP2: ПЛАН | AS2: ФАКТ | AU2: ПЛАН | AX2: ФАКТ | AZ2: ПЛАН | BC2: ФАКТ | BE2: ПЛАН | BH2: ФАКТ | BJ2: ПЛАН | BM2: ФАКТ | BO2: ПЛАН
A3: Месяц | B3: Вид | C3: Наименование медицинской организации | D3: Оплачено случаев | E3: Оплачено сумма, тыс.руб. | F3: План ДВН, чел. | G3: Отклонение | H3: % выполнения | J3: 1мес | K3: январь | L3: январь | M3: 2 мес | O3: Февраль | Q3: Февраль | R3: 3 мес | T3: Март | V3: Март | W3: 4 мес | Y3: Апрель | AA3: Апрель | AB3: 5 мес | AD3: Май | AF3: Май | AG3: 6 мес | AI3: Июнь | AK3: Июнь | AL3: 7 мес | AN3: Июль | AP3: Июль | AQ3: 8 мес | AS3: Август | AU3: Август | AV3: 9 мес | AX3: Сентябрь | AZ3: Сентябрь | BA3: 10 мес | BC3: Октябрь | BE3: Октябрь | BF3: 11 мес | BH3: Ноябрь | BJ3: Ноябрь | BK3: 12 мес | BM3: Декабрь | BO3: Декабрь
A4: Январь | B4: ДВН | C4: ЦМБ № 1 | D4: =J4 -> 40 | E4: =K4 -> 80.713 | F4: =L4 -> 10 | G4: =Таблица1[[#This Row],[Оплачено случаев]]-Таблица1[[#This Row],[План ДВН, чел.]] -> 30 | H4: =ROUND(Таблица1[[#This Row],[Оплачено случаев]]/Таблица1[[#This Row],[План ДВН, чел.]]*100,1) -> 400 | J4: 40 | K4: 80.713 | L4: 10 | M4: =J4+O4 -> 143 | N4: =K4+P4 -> 286.95457 | O4: 103 | P4: 206.24157 | Q4: 101 | R4: =M4+T4 -> 293 | S4: =N4+U4 -> 581.33956 | T4: 150 | U4: 294.38499 | V4: 134 | W4: =R4+Y4 -> 369 | X4: =S4+Z4 -> 735.01783 | Y4: 76 | Z4: 153.67827 | AA4: 139 | AB4: =W4+AD4 -> 485 | AC4: =X4+AE4 -> 964.48409 | AD4: 116 | AE4: 229.46626 | AF4: 131 | AG4: =AB4+AI4 -> 615 | AH4: =AC4+AJ4 -> 1228.54849 | AI4: 130 | AJ4: 264.0644 | AK4: 135 | AL4: =AG4+AN4 -> 737 | AM4: =AH4+AO4 -> 1483.16356 | AN4: 122 | AO4: 254.61507 | AP4: 139 | AQ4: =AL4+AS4 -> 876 | AR4: =AM4+AT4 -> 1773.79058 | AS4: 139 | AT4: 290.62702 | AU4: 157 | AV4: =AQ4+AX4 -> 991 | AW4: =AR4+AY4 -> 2014.59487 | AX4: 115 | AY4: 240.80429 | AZ4: 125 | BA4: =AV4+BC4 -> 1143 | BB4: =AW4+BD4 -> 2324.56806 | BC4: 152 | BD4: 309.97319 | BE4: 152 | BF4: =BH4+BA4 -> 1244 | BG4: =BB4+BI4 -> 2536.62477 | BH4: 101 | BI4: 212.05671 | BJ4: 127 | BK4: =BF4+BM4 -> 1395 | BL4: =BG4+BN4 -> 2855.9323 | BM4: 151 | BN4: 319.30753
A5: Январь | B5: ДВН | C5: ЦМБ № 2 | D5: =J5 -> 281 | E5: =K5 -> 550.7035 | F5: =L5 -> 200 | G5: =Таблица1[[#This Row],[Оплачено случаев]]-Таблица1[[#This Row],[План ДВН, чел.]] -> 81 | H5: =ROUND(Таблица1[[#This Row],[Оплачено случаев]]/Таблица1[[#This Row],[План ДВН, чел.]]*100,1) -> 140.5 | J5: 281 | K5: 550.7035 | L5: 200 | M5: =J5+O5 -> 748 | N5: 1476.37246 | O5: 467 | P5: 925.66896 | Q5: 318 | R5: =M5+T5 -> 1092 | S5: =N5+U5 -> 2159.37417 | T5: 344 | U5: 683.00171 | V5: 281 | W5: =R5+Y5 -> 1212 | X5: =S5+Z5 -> 2395.14405 | Y5: 120 | Z5: 235.76988 | AA5: 337 | AB5: =W5+AD5 -> 1374 | AC5: =X5+AE5 -> 2729.01497 | AD5: 162 | AE5: 333.87092 | AF5: 343 | AG5: =AB5+AI5 -> 1687 | AH5: =AC5+AJ5 -> 3362.79 | AI5: 313 | AJ5: 633.77503 | AK5: 342 | AL5: =AG5+AN5 -> 1974 | AM5: =AH5+AO5 -> 3982.49861 | AN5: 287 | AO5: 619.70861 | AP5: 350 | AQ5: =AL5+AS5 -> 2108 | AR5: =AM5+AT5 -> 4255.93622 | AS5: 134 | AT5: 273.43761 | AU5: 200 | AV5: =AQ5+AX5 -> 2354 | AW5: =AR5+AY5 -> 4732.22758 | AX5: 246 | AY5: 476.29136 | AZ5: 200 | BA5: =AV5+BC5 -> 2555 | BB5: =AW5+BD5 -> 5132.17325 | BC5: 201 | BD5: 399.94567 | BE5: 200 | BF5: =BH5+BA5 -> 2918 | BG5: =BB5+BI5 -> 5880.02473 | BH5: 363 | BI5: 747.85148 | BJ5: 187 | BK5: =BF5+BM5 -> 2927 | BL5: =BG5+BN5 -> 5897.19221 | BM5: 9 | BN5: 17.16748
A6: Январь | B6: ДВН | C6: ЦМБ № 3 | D6: 43 | E6: 78.70069 | F6: 69 | G6: =Таблица1[[#This Row],[Оплачено случаев]]-Таблица1[[#This Row],[План ДВН, чел.]] -> -26 | H6: =ROUND(Таблица1[[#This Row],[Оплачено случаев]]/Таблица1[[#This Row],[План ДВН, чел.]]*100,1) -> 62.3 | J6: 43 | K6: 78.70069 | L6: 69 | M6: 172 | N6: 352.57622 | O6: 129 | P6: 273.87553 | Q6: 69 | R6: 387 | S6: 785.10585 | T6: 215 | U6: 432.52963 | V6: 165 | W6: 612 | X6: 1240.43166 | Y6: 225 | Z6: 455.32581 | AA6: 165 | AB6: 764 | AC6: 1550.37984 | AD6: 152 | AE6: 309.94818 | AF6: 165 | AG6: 882 | AH6: 1784.39918 | AI6: 118 | AJ6: 234.01934 | AK6: 165 | AL6: 1009 | AM6: 2035.88169 | AN6: 127 | AO6: 251.48251 | AP6: 165 | AQ6: 1132 | AR6: 2280.92246 | AS6: 123 | AT6: 245.04077 | AU6: 165 | AV6: 1206 | AW6: 2434.78543 | AX6: 74 | AY6: 153.86297 | AZ6: 165 | BA6: 1288 | BB6: 2600.31471 | BC6: 82 | BD6: 165.52928 | BE6: 165 | BF6: 1507 | BG6: 3058.99846 | BH6: 219 | BI6: 458.68375 | BJ6: 152 | BK6: 1577 | BL6: 3197.17503 | BM6: 70 | BN6: 138.17657
A7: Январь | B7: ДВН | C7: ЦМБ № 4 | D7: 17 | E7: 31.86518 | F7: 10 | G7: =Таблица1[[#This Row],[Оплачено случаев]]-Таблица1[[#This Row],[План ДВН, чел.]] -> 7 | H7: =ROUND(Таблица1[[#This Row],[Оплачено случаев]]/Таблица1[[#This Row],[План ДВН, чел.]]*100,1) -> 170 | J7: 17 | K7: 31.86518 | L7: 10 | M7: 30 | N7: 59.14451 | O7: 13 | P7: 27.27933 | Q7: 32 | R7: 62 | S7: 128.23684 | T7: 32 | U7: 69.09233 | V7: 52 | W7: 143 | X7: 292.09241 | Y7: 81 | Z7: 163.85557 | AA7: 52 | AB7: 189 | AC7: 388.13371 | AD7: 46 | AE7: 96.0413 | AF7: 52 | AG7: 202 | AH7: 414.03625 | AI7: 13 | AJ7: 25.90254 | AK7: 44 | AL7: 272 | AM7: 555.89152 | AN7: 70 | AO7: 141.85527 | AP7: 42 | AQ7: 284 | AR7: 582.8284 | AS7: 12 | AT7: 26.93688 | AU7: 42 | AV7: 312 | AW7: 639.12679 | AX7: 28 | AY7: 56.29839 | AZ7: 42 | BA7: 368 | BB7: 761.9454 | BC7: 56 | BD7: 122.81861 | BE7: 42 | BF7: 466 | BG7: 978.76105 | BH7: 98 | BI7: 216.81565 | BJ7: 40 | BK7: 579 | BL7: 1230.75268 | BM7: 113 | BN7: 251.99163
A8: Январь | B8: ДВН | C8: ЦМБ № 5 | D8: 134 | E8: 291.89323 | F8: 32 | G8: =Таблица1[[#This Row],[Оплачено случаев]]-Таблица1[[#This Row],[План ДВН, чел.]] -> 102 | H8: =ROUND(Таблица1[[#This Row],[Оплачено случаев]]/Таблица1[[#This Row],[План ДВН, чел.]]*100,1) -> 418.8 | J8: 134 | K8: 291.89323 | L8: 32 | M8: 404 | N8: 865.21924 | O8: 270 | P8: 573.32601 | Q8: 206 | R8: 585 | S8: 1245.25592 | T8: 181 | U8: 380.03668 | V8: 214 | W8: 744 | X8: 1580.74918 | Y8: 159 | Z8: 335.49326 | AA8: 204 | AB8: 887 | AC8: 1868.78805 | AD8: 143 | AE8: 288.03887 | AF8: 172 | AG8: 1121 | AH8: 2366.4551 | AI8: 234 | AJ8: 497.66705 | AK8: 221 | AL8: 1318 | AM8: 2778.32318 | AN8: 197 | AO8: 411.86808 | AP8: 204 | AQ8: 1428 | AR8: 3010.49124 | AS8: 110 | AT8: 232.16806 | AU8: 186 | AV8: 1484 | AW8: 3127.49685 | AX8: 56 | AY8: 117.00561 | AZ8: 223 | BA8: 1630 | BB8: 3427.16724 | BC8: 146 | BD8: 299.67039 | BE8: 188 | BF8: 1816 | BG8: 3813.28071 | BH8: 186 | BI8: 386.11347 | BJ8: 150 | BK8: 1886 | BL8: 3967.95369 | BM8: 70 | BN8: 154.67298
A9: Январь | B9: ДВН | C9: ЦМБ № 6 | D9: 273 | E9: 567.09844 | F9: 238 | G9: =Таблица1[[#This Row],[Оплачено случаев]]-Таблица1[[#This Row],[План ДВН, чел.]] -> 35 | H9: =ROUND(Таблица1[[#This Row],[Оплачено случаев]]/Таблица1[[#This Row],[План ДВН, чел.]]*100,1) -> 114.7 | J9: 273 | K9: 567.09844 | L9: 238 | M9: 597 | N9: 1216.66592 | O9: 324 | P9: 649.56748 | Q9: 460 | R9: 974 | S9: 1994.84518 | T9: 377 | U9: 778.17926 | V9: 343 | W9: 1198 | X9: 2431.73612 | Y9: 224 | Z9: 436.89094 | AA9: 343 | AB9: 1449 | AC9: 2935.84698 | AD9: 251 | AE9: 504.11086 | AF9: 243 | AG9: 1665 | AH9: 3379.36357 | AI9: 216 | AJ9: 443.51659 | AK9: 243 | AL9: 1826 | AM9: 3711.47147 | AN9: 161 | AO9: 332.1079 | AP9: 343 | AQ9: 1989 | AR9: 4035.34525 | AS9: 163 | AT9: 323.87378 | AU9: 160 | AV9: 2123 | AW9: 4312.51804 | AX9: 134 | AY9: 277.17279 | AZ9: 160 | BA9: 2349 | BB9: 4764.90776 | BC9: 226 | BD9: 452.38972 | BE9: 160 | BF9: 2802 | BG9: 5696.49114 | BH9: 453 | BI9: 931.58338 | BJ9: 157 | BK9: 3408 | BL9: 6905.24092 | BM9: 606 | BN9: 1208.74978
A10: Январь | B10: ДВН | C10: КГБ № 5 | D10: 991 | E10: 1949.80749 | F10: 1005 | G10: =Таблица1[[#This Row],[Оплачено случаев]]-Таблица1[[#This Row],[План ДВН, чел.]] -> -14 | H10: =ROUND(Таблица1[[#This Row],[Оплачено случаев]]/Таблица1[[#This Row],[План ДВН, чел.]]*100,1) -> 98.6 | J10: 991 | K10: 1949.80749 | L10: 1005 | M10: 1911 | N10: 3807.66515 | O10: 920 | P10: 1857.85766 | Q10: 1005 | R10: 2822 | S10: 5647.91721 | T10: 911 | U10: 1840.25206 | V10: 1005 | W10: 3600 | X10: 7189.45081 | Y10: 778 | Z10: 1541.5336 | AA10: 1005 | AB10: 4650 | AC10: 9344.29131 | AD10: 1050 | AE10: 2154.8405 | AF10: 1005 | AG10: 5685 | AH10: 11410.23592 | AI10: 1035 | AJ10: 2065.94461 | AK10: 1005 | AL10: 6520 | AM10: 13069.22716 | AN10: 835 | AO10: 1658.99124 | AP10: 1005 | AQ10: 7317 | AR10: 14672.11739 | AS10: 797 | AT10: 1602.89023 | AU10: 1288 | AV10: 8292 | AW10: 16585.42431 | AX10: 975 | AY10: 1913.30692 | AZ10: 1288 | BA10: 8484 | BB10: 16960.15836 | BC10: 192 | BD10: 374.73405 | BE10: 814 | BF10: 9502 | BG10: 19024.96893 | BH10: 1018 | BI10: 2064.81057 | BJ10: 815 | BK10: 9604 | BL10: 19232.79654 | BM10: 102 | BN10: 207.82761
A11: Январь | B11: ДВН | C11: КГКБ № 4 | D11: 246 | E11: 497.51519 | F11: 430 | G11: =Таблица1[[#This Row],[Оплачено случаев]]-Таблица1[[#This Row],[План ДВН, чел.]] -> -184 | H11: =ROUND(Таблица1[[#This Row],[Оплачено случаев]]/Таблица1[[#This Row],[План ДВН, чел.]]*100,1) -> 57.2 | J11: 246 | K11: 497.51519 | L11: 430 | M11: 587 | N11: 1181.83946 | O11: 341 | P11: 684.32427 | Q11: 430 | R11: 1020 | S11: 2062.83488 | T11: 433 | U11: 880.99542 | V11: 430 | W11: 1385 | X11: 2808.95558 | Y11: 365 | Z11: 746.1207 | AA11: 430 | AB11: 1714 | AC11: 3497.06351 | AD11: 329 | AE11: 688.10793 | AF11: 430 | AG11: 1989 | AH11: 4058.47238 | AI11: 275 | AJ11: 561.40887 | AK11: 430 | AL11: 2416 | AM11: 4935.4034 | AN11: 427 | AO11: 876.93102 | AP11: 430 | AQ11: 2989 | AR11: 6115.20283 | AS11: 573 | AT11: 1179.79943 | AU11: 430 | AV11: 3521 | AW11: 7228.42416 | AX11: 532 | AY11: 1113.22133 | AZ11: 430 | BA11: 4445 | BB11: 9108.54373 | BC11: 924 | BD11: 1880.11957 | BE11: 430 | BF11: 5218 | BG11: 10741.47275 | BH11: 773 | BI11: 1632.92902 | BJ11: 400 | BK11: 5867 | BL11: 12107.85069 | BM11: 649 | BN11: 1366.37794
A12: Январь | B12: ДВН | C12: Городская поликлиника | D12: 406 | E12: 847.85621 | F12: 203 | G12: =Таблица1[[#This Row],[Оплачено случаев]]-Таблица1[[#This Row],[План ДВН, чел.]] -> 203 | H12: =ROUND(Таблица1[[#This Row],[Оплачено случаев]]/Таблица1[[#This Row],[План ДВН, чел.]]*100,1) -> 200 | J12: 406 | K12: 847.85621 | L12: 203 | M12: 895 | N12: 1869.62723 | O12: 489 | P12: 1021.77102 | Q12: 562 | R12: 1407 | S12: 2947.18527 | T12: 512 | U12: 1077.55804 | V12: 562 | W12: 1853 | X12: 3884.08348 | Y12: 446 | Z12: 936.89821 | AA12: 562 | AB12: 2279 | AC12: 4803.37343 | AD12: 426 | AE12: 919.28995 | AF12: 562 | AG12: 2652 | AH12: 5595.10101 | AI12: 373 | AJ12: 791.72758 | AK12: 562 | AL12: 3079 | AM12: 6507.4715 | AN12: 427 | AO12: 912.37049 | AP12: 562 | AQ12: 3367 | AR12: 7116.46208 | AS12: 288 | AT12: 608.99058 | AU12: 323 | AV12: 3665 | AW12: 7761.8906 | AX12: 298 | AY12: 645.42852 | AZ12: 323 | BA12: 4076 | BB12: 8623.63891 | BC12: 411 | BD12: 861.74831 | BE12: 323 | BF12: 4528 | BG12: 9607.34702 | BH12: 452 | BI12: 983.70811 | BJ12: 325 | BK12: 5078 | BL12: 10797.46808 | BM12: 550 | BN12: 1190.12106
A13: Январь | B13: ДВН | C13: МСЧ № 1 г. Калуги | D13: 148 | E13: 271.78458 | F13: 55 | G13: =Таблица1[[#This Row],[Оплачено случаев]]-Таблица1[[#This Row],[План ДВН, чел.]] -> 93 | H13: =ROUND(Таблица1[[#This Row],[Оплачено случаев]]/Таблица1[[#This Row],[План ДВН, чел.]]*100,1) -> 269.1 | J13: 148 | K13: 271.78458 | L13: 55 | M13: 148 | N13: 271.78458 | P13: 0 | Q13: 55 | R13: 148 | S13: 271.78458 | U13: 0 | V13: 55 | W13: 255 | X13: 487.81868 | Y13: 107 | Z13: 216.0341 | AA13: 55 | AB13: 514 | AC13: 963.30729 | AD13: 259 | AE13: 475.48861 | AF13: 55 | AG13: 568 | AH13: 1062.78413 | AI13: 54 | AJ13: 99.47684 | AK13: 55 | AL13: 596 | AM13: 1113.27218 | AN13: 28 | AO13: 50.48805 | AP13: 55 | AQ13: 596 | AR13: 1113.27218 | AT13: 0 | AU13: 55 | AV13: 596 | AW13: 1113.27218 | AY13: 0 | AZ13: 120 | BA13: 597 | BB13: 1115.05401 | BC13: 1 | BD13: 1.78183 | BE13: 120 | BF13: 603 | BG13: 1126.58092 | BH13: 6 | BI13: 11.52691 | BJ13: 120 | BK13: 653 | BL13: 1210.43009 | BM13: 50 | BN13: 83.84917
A14: Январь | B14: ДВН | C14: МСЧ № 2 г. Калуги | D14: 0 | E14: 0 | F14: 0 | G14: =Таблица1[[#This Row],[Оплачено случаев]]-Таблица1[[#This Row],[План ДВН, чел.]] -> 0 | H14: =ROUND(Таблица1[[#This Row],[Оплачено случаев]]/Таблица1[[#This Row],[План ДВН, чел.]]*100,1) ->  | K14: 0 | L14: 0 | M14: 0 | N14: 0 | P14: 0 | Q14: 1 | R14: 2 | S14: 3.02377 | T14: 2 | U14: 3.02377 | V14: 1 | W14: 4 | X14: 6.73545 | Y14: 2 | Z14: 3.71168 | AA14: 1 | AB14: 4 | AC14: 6.73545 | AE14: 0 | AF14: 1 | AG14: 4 | AH14: 6.73545 | AJ14: 0 | AK14: 1 | AL14: 4 | AM14: 6.73545 | AO14: 0 | AP14: 1 | AQ14: 4 | AR14: 6.73545 | AT14: 0 | AU14: 1 | AV14: 4 | AW14: 6.73545 | AY14: 0 | AZ14: 1 | BA14: 4 | BB14: 6.73545 | BD14: 0 | BE14: 1 | BF14: 4 | BG14: 6.73545 | BI14: 0 | BJ14: 1 | BK14: 4 | BL14: 6.73545 | BN14: 0
A15: Январь | B15: ДВН | C15: МСЧ МВД | D15: 0 | E15: 0 | F15: 0 | G15: =Таблица1[[#This Row],[Оплачено случаев]]-Таблица1[[#This Row],[План ДВН, чел.]] -> 0 | H15: =ROUND(Таблица1[[#This Row],[Оплачено случаев]]/Таблица1[[#This Row],[План ДВН, чел.]]*100,1) ->  | K15: 0 | L15: 0 | M15: 0 | N15: 0 | P15: 0 | Q15: 1 | R15: 0 | S15: 0 | U15: 0 | V15: 1 | W15: 0 | X15: 0 | Z15: 0 | AA15: 1 | AB15: 0 | AC15: 0 | AE15: 0 | AF15: 1 | AG15: 0 | AH15: 0 | AJ15: 0 | AK15: 1 | AL15: 0 | AM15: 0 | AO15: 0 | AP15: 1 | AQ15: 0 | AR15: 0 | AT15: 0 | AU15: 1 | AV15: 0 | AW15: 0 | AY15: 0 | AZ15: 1 | BA15: 0 | BB15: 0 | BD15: 0 | BE15: 1 | BF15: 0 | BG15: 0 | BI15: 0 | BJ15: 1 | BK15: 0 | BL15: 0 | BN15: 0
A16: Январь | B16: ДВН | C16: ЧУЗ "Больница "РЖД - Медицина" | D16: 2 | E16: 4.16127 | F16: 7 | G16: =Таблица1[[#This Row],[Оплачено случаев]]-Таблица1[[#This Row],[План ДВН, чел.]] -> -5 | H16: =ROUND(Таблица1[[#This Row],[Оплачено случаев]]/Таблица1[[#This Row],[План ДВН, чел.]]*100,1) -> 28.6 | J16: 2 | K16: 4.16127 | L16: 7 | M16: 13 | N16: 25.42552 | O16: 11 | P16: 21.26425 | Q16: 26 | R16: 14 | S16: 27.20735 | T16: 1 | U16: 1.78183 | V16: 26 | W16: 17 | X16: 32.6999 | Y16: 3 | Z16: 5.49255 | AA16: 26 | AB16: 33 | AC16: 58.85602 | AD16: 16 | AE16: 26.15612 | AF16: 26 | AG16: 130 | AH16: 236.83459 | AI16: 97 | AJ16: 177.97857 | AK16: 26 | AL16: 142 | AM16: 260.11962 | AN16: 12 | AO16: 23.28503 | AP16: 26 | AQ16: 158 | AR16: 293.46943 | AS16: 16 | AT16: 33.34981 | AU16: 26 | AV16: 203 | AW16: 388.92297 | AX16: 45 | AY16: 95.45354 | AZ16: 26 | BA16: 296 | BB16: 580.43189 | BC16: 93 | BD16: 191.50892 | BE16: 26 | BF16: 369 | BG16: 725.88028 | BH16: 73 | BI16: 145.44839 | BJ16: 29 | BK16: 377 | BL16: 743.96442 | BM16: 8 | BN16: 18.08414
A17: Январь | B17: ДВН | C17: КБ № 8 ФМБА | D17: 188 | E17: 384.02384 | F17: 730 | G17: =Таблица1[[#This Row],[Оплачено случаев]]-Таблица1[[#This Row],[План ДВН, чел.]] -> -542 | H17: =ROUND(Таблица1[[#This Row],[Оплачено случаев]]/Таблица1[[#This Row],[План ДВН, чел.]]*100,1) -> 25.8 | J17: 188 | K17: 384.02384 | L17: 730 | M17: 444 | N17: 927.76541 | O17: 256 | P17: 543.74157 | Q17: 730 | R17: 841 | S17: 1734.8416 | T17: 397 | U17: 807.07619 | V17: 730 | W17: 1386 | X17: 2844.01856 | Y17: 545 | Z17: 1109.17696 | AA17: 730 | AB17: 1866 | AC17: 3851.89809 | AD17: 480 | AE17: 1007.87953 | AF17: 730 | AG17: 2685 | AH17: 5459.99101 | AI17: 819 | AJ17: 1608.09292 | AK17: 730 | AL17: 3682 | AM17: 7402.33853 | AN17: 997 | AO17: 1942.34752 | AP17: 729 | AQ17: 4597 | AR17: 9232.76859 | AS17: 915 | AT17: 1830.43006 | AU17: 729 | AV17: 6009 | AW17: 12024.64299 | AX17: 1412 | AY17: 2791.8744 | AZ17: 729 | BA17: 7409 | BB17: 14771.32183 | BC17: 1400 | BD17: 2746.67884 | BE17: 729 | BF17: 8703 | BG17: 17334.98145 | BH17: 1294 | BI17: 2563.65962 | BJ17: 704 | BK17: 9033 | BL17: 17958.80023 | BM17: 330 | BN17: 623.81878
A18: Январь | B18: ДВН | C18: ЦРБ Бабынинского района | D18: 19 | E18: 37.61583 | F18: 81 | G18: =Таблица1[[#This Row],[Оплачено случаев]]-Таблица1[[#This Row],[План ДВН, чел.]] -> -62 | H18: =ROUND(Таблица1[[#This Row],[Оплачено случаев]]/Таблица1[[#This Row],[План ДВН, чел.]]*100,1) -> 23.5 | J18: 19 | K18: 37.61583 | L18: 81 | M18: 63 | N18: 120.92638 | O18: 44 | P18: 83.31055 | Q18: 116 | R18: 103 | S18: 196.23659 | T18: 40 | U18: 75.31021 | V18: 116 | W18: 153 | X18: 293.00972 | Y18: 50 | Z18: 96.77313 | AA18: 116 | AB18: 231 | AC18: 449.04671 | AD18: 78 | AE18: 156.03699 | AF18: 116 | AG18: 240 | AH18: 467.59003 | AI18: 9 | AJ18: 18.54332 | AK18: 116 | AL18: 388 | AM18: 772.92684 | AN18: 148 | AO18: 305.33681 | AP18: 116 | AQ18: 695 | AR18: 1412.29554 | AS18: 307 | AT18: 639.3687 | AU18: 62 | AV18: 762 | AW18: 1553.31727 | AX18: 67 | AY18: 141.02173 | AZ18: 62 | BA18: 818 | BB18: 1659.79065 | BC18: 56 | BD18: 106.47338 | BE18: 62 | BF18: 875 | BG18: 1771.66597 | BH18: 57 | BI18: 111.87532 | BJ18: 62 | BK18: 1089 | BL18: 2226.60945 | BM18: 214 | BN18: 454.94348
A19: Январь | B19: ДВН | C19: ЦРБ Боровского района | D19: 135 | E19: 288.08102 | F19: 12 | G19: =Таблица1[[#This Row],[Оплачено случаев]]-Таблица1[[#This Row],[План ДВН, чел.]] -> 123 | H19: =ROUND(Таблица1[[#This Row],[Оплачено случаев]]/Таблица1[[#This Row],[План ДВН, чел.]]*100,1) -> 1125 | J19: 135 | K19: 288.08102 | L19: 12 | M19: 325 | N19: 668.06713 | O19: 190 | P19: 379.98611 | Q19: 325 | R19: 635 | S19: 1285.28976 | T19: 310 | U19: 617.22263 | V19: 335 | W19: 708 | X19: 1440.30554 | Y19: 73 | Z19: 155.01578 | AA19: 335 | AB19: 1089 | AC19: 2216.41115 | AD19: 381 | AE19: 776.10561 | AF19: 12 | AG19: 1272 | AH19: 2590.28083 | AI19: 183 | AJ19: 373.86968 | AK19: 325 | AL19: 1432 | AM19: 2943.93996 | AN19: 160 | AO19: 353.65913 | AP19: 12 | AQ19: 1576 | AR19: 3232.79561 | AS19: 144 | AT19: 288.85565 | AU19: 12 | AV19: 1748 | AW19: 3598.26346 | AX19: 172 | AY19: 365.46785 | AZ19: 328 | BA19: 1874 | BB19: 3874.05704 | BC19: 126 | BD19: 275.79358 | BE19: 325 | BF19: 2213 | BG19: 4581.05671 | BH19: 339 | BI19: 706.99967 | BJ19: 309 | BK19: 2881 | BL19: 5942.68124 | BM19: 668 | BN19: 1361.62453
A20: Январь | B20: ДВН | C20: ЦРБ Жуковского района | D20: 18 | E20: 36.91347 | F20: 82 | G20: =Таблица1[[#This Row],[Оплачено случаев]]-Таблица1[[#This Row],[План ДВН, чел.]] -> -64 | H20: =ROUND(Таблица1[[#This Row],[Оплачено случаев]]/Таблица1[[#This Row],[План ДВН, чел.]]*100,1) -> 22 | J20: 18 | K20: 36.91347 | L20: 82 | M20: 105 | N20: 214.12989 | O20: 87 | P20: 177.21642 | Q20: 80 | R20: 152 | S20: 308.99444 | T20: 47 | U20: 94.86455 | V20: 82 | W20: 240 | X20: 502.17999 | Y20: 88 | Z20: 193.18555 | AA20: 82 | AB20: 302 | AC20: 631.25747 | AD20: 62 | AE20: 129.07748 | AF20: 82 | AG20: 342 | AH20: 712.86484 | AI20: 40 | AJ20: 81.60737 | AK20: 82 | AL20: 418 | AM20: 881.5186 | AN20: 76 | AO20: 168.65376 | AP20: 82 | AQ20: 486 | AR20: 1028.67722 | AS20: 68 | AT20: 147.15862 | AU20: 82 | AV20: 663 | AW20: 1408.83563 | AX20: 177 | AY20: 380.15841 | AZ20: 82 | BA20: 962 | BB20: 2018.99481 | BC20: 299 | BD20: 610.15918 | BE20: 82 | BF20: 1568 | BG20: 3427.14935 | BH20: 606 | BI20: 1408.15454 | BJ20: 82 | BK20: 1928 | BL20: 4292.19163 | BM20: 360 | BN20: 865.04228
A21: Январь | B21: ДВН | C21: ГП "Город Кременки" | D21: 8 | E21: 15.7775 | F21: 28 | G21: =Таблица1[[#This Row],[Оплачено случаев]]-Таблица1[[#This Row],[План ДВН, чел.]] -> -20 | H21: =ROUND(Таблица1[[#This Row],[Оплачено случаев]]/Таблица1[[#This Row],[План ДВН, чел.]]*100,1) -> 28.6 | J21: 8 | K21: 15.7775 | L21: 28 | M21: 23 | N21: 49.54116 | O21: 15 | P21: 33.76366 | Q21: 26 | R21: 50 | S21: 110.32478 | T21: 27 | U21: 60.78362 | V21: 28 | W21: 72 | X21: 159.22146 | Y21: 22 | Z21: 48.89668 | AA21: 28 | AB21: 106 | AC21: 240.943 | AD21: 34 | AE21: 81.72154 | AF21: 28 | AG21: 138 | AH21: 316.30909 | AI21: 32 | AJ21: 75.36609 | AK21: 28 | AL21: 175 | AM21: 402.17482 | AN21: 37 | AO21: 85.86573 | AP21: 28 | AQ21: 204 | AR21: 466.10587 | AS21: 29 | AT21: 63.93105 | AU21: 28 | AV21: 223 | AW21: 505.18048 | AX21: 19 | AY21: 39.07461 | AZ21: 28 | BA21: 258 | BB21: 584.76113 | BC21: 35 | BD21: 79.58065 | BE21: 28 | BF21: 275 | BG21: 623.05514 | BH21: 17 | BI21: 38.29401 | BJ21: 22 | BK21: 509 | BL21: 1109.36711 | BM21: 234 | BN21: 486.31197
A22: Январь | B22: ДВН | C22: ЦРБ Малоярославецкого района | D22: 91 | E22: 190.90193 | F22: 10 | G22: =Таблица1[[#This Row],[Оплачено случаев]]-Таблица1[[#This Row],[План ДВН, чел.]] -> 81 | H22: =ROUND(Таблица1[[#This Row],[Оплачено случаев]]/Таблица1[[#This Row],[План ДВН, чел.]]*100,1) -> 910 | J22: 91 | K22: 190.90193 | L22: 10 | M22: 232 | N22: 483.31188 | O22: 141 | P22: 292.40995 | Q22: 160 | R22: 385 | S22: 788.83775 | T22: 153 | U22: 305.52587 | V22: 160 | W22: 551 | X22: 1121.87817 | Y22: 166 | Z22: 333.04042 | AA22: 160 | AB22: 720 | AC22: 1463.22939 | AD22: 169 | AE22: 341.35122 | AF22: 160 | AG22: 868 | AH22: 1762.02931 | AI22: 148 | AJ22: 298.79992 | AK22: 160 | AL22: 956 | AM22: 1937.31575 | AN22: 88 | AO22: 175.28644 | AP22: 160 | AQ22: 1072 | AR22: 2181.87658 | AS22: 116 | AT22: 244.56083 | AU22: 160 | AV22: 1194 | AW22: 2419.3681 | AX22: 122 | AY22: 237.49152 | AZ22: 160 | BA22: 1321 | BB22: 2657.93033 | BC22: 127 | BD22: 238.56223 | BE22: 160 | BF22: 1475 | BG22: 2973.39752 | BH22: 154 | BI22: 315.46719 | BJ22: 140 | BK22: 1565 | BL22: 3157.97348 | BM22: 90 | BN22: 184.57596
A23: Январь | B23: ДВН | C23: ЦРБ Тарусского района | D23: 26 | E23: 56.64404 | F23: 30 | G23: =Таблица1[[#This Row],[Оплачено случаев]]-Таблица1[[#This Row],[План ДВН, чел.]] -> -4 | H23: =ROUND(Таблица1[[#This Row],[Оплачено случаев]]/Таблица1[[#This Row],[План ДВН, чел.]]*100,1) -> 86.7 | J23: 26 | K23: 56.64404 | L23: 30 | M23: 39 | N23: 83.00255 | O23: 13 | P23: 26.35851 | Q23: 39 | R23: 61 | S23: 133.1634 | T23: 22 | U23: 50.16085 | V23: 91 | W23: 134 | X23: 285.35144 | Y23: 73 | Z23: 152.18804 | AA23: 98 | AB23: 176 | AC23: 375.59153 | AD23: 42 | AE23: 90.24009 | AF23: 93 | AG23: 309 | AH23: 665.20666 | AI23: 133 | AJ23: 289.61513 | AK23: 78 | AL23: 350 | AM23: 758.40872 | AN23: 41 | AO23: 93.20206 | AP23: 81 | AQ23: 392 | AR23: 850.28577 | AS23: 42 | AT23: 91.87705 | AU23: 25 | AV23: 441 | AW23: 949.34086 | AX23: 49 | AY23: 99.05509 | AZ23: 30 | BA23: 513 | BB23: 1097.40407 | BC23: 72 | BD23: 148.06321 | BE23: 25 | BF23: 541 | BG23: 1157.0339 | BH23: 28 | BI23: 59.62983 | BJ23: 10 | BK23: 666 | BL23: 1432.9115 | BM23: 125 | BN23: 275.8776
A24: Февраль | B24: ДВН | C24: ЦМБ № 1 | D24: =O4 -> 103 | E24: =P4 -> 206.24157 | F24: =Q4 -> 101 | G24: =Таблица1[[#This Row],[Оплачено случаев]]-Таблица1[[#This Row],[План ДВН, чел.]] -> 2 | H24: =ROUND(Таблица1[[#This Row],[Оплачено случаев]]/Таблица1[[#This Row],[План ДВН, чел.]]*100,1) -> 102 | J24: =SUM(J4:J23) -> 3066 | K24: 6182.05641 | L24: 3232 | M24: 6879 | N24: 13960.01926 | O24: 3813 | P24: 7777.96285 | Q24: 4742 | R24: 11033 | S24: 22411.7989 | T24: 4154 | U24: 8451.77964 | V24: 4811 | W24: 14636 | X24: 29730.88003 | Y24: 3603 | Z24: 7319.08113 | AA24: 4869 | AB24: 18832 | AC24: 38338.65199 | AD24: 4196 | AE24: 8607.77196 | AF24: 4407 | AG24: 23054 | AH24: 46880.02784 | AI24: 4222 | AJ24: 8541.37585 | AK24: 4749 | AL24: 27294 | AM24: 55538.08256 | AN24: 4240 | AO24: 8658.05472 | AP24: =SUM(AP4:AP23) -> 4531 | AQ24: 31270 | AR24: 63661.37869 | AS24: 3976 | AT24: 8123.29613 | AU24: 4132 | AV24: 35791 | AW24: 72804.36802 | AX24: 4521 | AY24: 9142.98933 | AZ24: 4523 | BA24: 40390 | BB24: 82069.89863 | BC24: 4599 | BD24: 9265.53061 | BE24: 4033 | BF24: 46627 | BG24: 95065.50625 | BH24: 6237 | BI24: 12995.60762 | BJ24: 3833 | BK24: 51026 | BL24: 104274.0267 | BM24: 4399 | BN24: 9208.52049
A25: Февраль | B25: ДВН | C25: ЦМБ № 2 | D25: 467 | E25: 925.66896 | F25: 318 | G25: =Таблица1[[#This Row],[Оплачено случаев]]-Таблица1[[#This Row],[План ДВН, чел.]] -> 149 | H25: =ROUND(Таблица1[[#This Row],[Оплачено случаев]]/Таблица1[[#This Row],[План ДВН, чел.]]*100,1) -> 146.9 | N25: =N24*1000/M24 -> 2029.367533
A26: Февраль | B26: ДВН | C26: ЦМБ № 3 | D26: 129 | E26: 273.87553 | F26: 69 | G26: =Таблица1[[#This Row],[Оплачено случаев]]-Таблица1[[#This Row],[План ДВН, чел.]] -> 60 | H26: =ROUND(Таблица1[[#This Row],[Оплачено случаев]]/Таблица1[[#This Row],[План ДВН, чел.]]*100,1) -> 187
A27: Февраль | B27: ДВН | C27: ЦМБ № 4 | D27: 13 | E27: 27.27933 | F27: 32 | G27: =Таблица1[[#This Row],[Оплачено случаев]]-Таблица1[[#This Row],[План ДВН, чел.]] -> -19 | H27: =ROUND(Таблица1[[#This Row],[Оплачено случаев]]/Таблица1[[#This Row],[План ДВН, чел.]]*100,1) -> 40.6 | J27: =J5+#REF! ->  | K27: =K5+#REF! ->  | L27: =L5+#REF! ->  | M27: =M5+#REF! ->  | N27: =N5+#REF! ->  | O27: =O5+#REF! ->  | P27: =P5+#REF! ->  | Q27: =Q5+#REF! ->  | R27: =R5+#REF! ->  | S27: =S5+#REF! ->  | T27: =T5+#REF! ->  | U27: =U5+#REF! ->  | V27: =V5+#REF! ->  | W27: =W5+#REF! ->  | X27: =X5+#REF! ->  | Y27: =Y5+#REF! ->  | Z27: =Z5+#REF! ->  | AA27: =AA5+#REF! -> 
A28: Февраль | B28: ДВН | C28: ЦМБ № 5 | D28: 270 | E28: 573.32601 | F28: 206 | G28: =Таблица1[[#This Row],[Оплачено случаев]]-Таблица1[[#This Row],[План ДВН, чел.]] -> 64 | H28: =ROUND(Таблица1[[#This Row],[Оплачено случаев]]/Таблица1[[#This Row],[План ДВН, чел.]]*100,1) -> 131.1 | K28: =K4/1000 -> 0.080713 | P28: =P4/1000 -> 0.20624157 | U28: =U4/1000 -> 0.29438499 | Z28: =Z4/1000 -> 0.15367827 | AE28: =AE4/1000 -> 0.22946626 | AJ28: =AJ4/1000 -> 0.2640644 | AO28: =AO4/1000 -> 0.25461507 | AT28: =AT4/1000 -> 0.29062702 | AY28: =AY4/1000 -> 0.24080429 | BD28: =BD4/1000 -> 0.30997319 | BI28: =BI4/1000 -> 0.21205671
A29: Февраль | B29: ДВН | C29: ЦМБ № 6 | D29: 324 | E29: 649.56748 | F29: 460 | G29: =Таблица1[[#This Row],[Оплачено случаев]]-Таблица1[[#This Row],[План ДВН, чел.]] -> -136 | H29: =ROUND(Таблица1[[#This Row],[Оплачено случаев]]/Таблица1[[#This Row],[План ДВН, чел.]]*100,1) -> 70.4 | K29: =K5/1000 -> 0.5507035 | P29: =P5/1000 -> 0.92566896 | U29: =U5/1000 -> 0.68300171 | Z29: =Z5/1000 -> 0.23576988 | AE29: =AE5/1000 -> 0.33387092 | AJ29: =AJ5/1000 -> 0.63377503 | AO29: =AO5/1000 -> 0.61970861 | AT29: =AT5/1000 -> 0.27343761 | AY29: =AY5/1000 -> 0.47629136 | BD29: =BD5/1000 -> 0.39994567 | BI29: =BI5/1000 -> 0.74785148
A30: Февраль | B30: ДВН | C30: КГБ № 5 | D30: 920 | E30: 1857.85766 | F30: 1005 | G30: =Таблица1[[#This Row],[Оплачено случаев]]-Таблица1[[#This Row],[План ДВН, чел.]] -> -85 | H30: =ROUND(Таблица1[[#This Row],[Оплачено случаев]]/Таблица1[[#This Row],[План ДВН, чел.]]*100,1) -> 91.5 | K30: 0.07870069 | P30: 0.27387553 | U30: 0.43252963 | Z30: 0.45532581 | AE30: 0.30994818 | AJ30: 0.23401934 | AO30: 0.25148251 | AT30: 0.24504077 | AY30: 0.15386297 | BD30: 0.16552928 | BI30: 0.45868375
A31: Февраль | B31: ДВН | C31: КГКБ № 4 | D31: 341 | E31: 684.32427 | F31: 430 | G31: =Таблица1[[#This Row],[Оплачено случаев]]-Таблица1[[#This Row],[План ДВН, чел.]] -> -89 | H31: =ROUND(Таблица1[[#This Row],[Оплачено случаев]]/Таблица1[[#This Row],[План ДВН, чел.]]*100,1) -> 79.3 | K31: 0.03186518 | P31: 0.02727933 | U31: 0.06909233 | Z31: 0.16385557 | AE31: 0.0960413 | AJ31: 0.02590254 | AO31: 0.14185527 | AT31: 0.02693688 | AY31: 0.05629839 | BD31: 0.12281861 | BI31: 0.21681565
A32: Февраль | B32: ДВН | C32: Городская поликлиника | D32: 489 | E32: 1021.77102 | F32: 562 | G32: =Таблица1[[#This Row],[Оплачено случаев]]-Таблица1[[#This Row],[План ДВН, чел.]] -> -73 | H32: =ROUND(Таблица1[[#This Row],[Оплачено случаев]]/Таблица1[[#This Row],[План ДВН, чел.]]*100,1) -> 87 | K32: 0.29189323 | P32: 0.57332601 | U32: 0.38003668 | Z32: 0.33549326 | AE32: 0.28803887 | AJ32: 0.49766705 | AO32: 0.41186808 | AT32: 0.23216806 | AY32: 0.11700561 | BD32: 0.29967039 | BI32: 0.38611347
A33: Февраль | B33: ДВН | C33: МСЧ № 1 г. Калуги | D33: 0 | E33: 0 | F33: 55 | G33: =Таблица1[[#This Row],[Оплачено случаев]]-Таблица1[[#This Row],[План ДВН, чел.]] -> -55 | H33: =ROUND(Таблица1[[#This Row],[Оплачено случаев]]/Таблица1[[#This Row],[План ДВН, чел.]]*100,1) -> 0 | K33: 0.56709844 | P33: 0.64956748 | U33: 0.77817926 | Z33: 0.43689094 | AE33: 0.50411086 | AJ33: 0.44351659 | AO33: 0.3321079 | AT33: 0.32387378 | AY33: 0.27717279 | BD33: 0.45238972 | BI33: 0.93158338
A34: Февраль | B34: ДВН | C34: МСЧ № 2 г. Калуги | D34: 0 | E34: 0 | F34: 1 | G34: =Таблица1[[#This Row],[Оплачено случаев]]-Таблица1[[#This Row],[План ДВН, чел.]] -> -1 | H34: =ROUND(Таблица1[[#This Row],[Оплачено случаев]]/Таблица1[[#This Row],[План ДВН, чел.]]*100,1) -> 0 | K34: 1.94980749 | P34: 1.85785766 | U34: 1.84025206 | Z34: 1.5415336 | AE34: 2.1548405 | AJ34: 2.06594461 | AO34: 1.65899124 | AT34: 1.60289023 | AY34: 1.91330692 | BD34: 0.37473405 | BI34: 2.06481057
A35: Февраль | B35: ДВН | C35: МСЧ МВД | D35: 0 | E35: 0 | F35: 1 | G35: =Таблица1[[#This Row],[Оплачено случаев]]-Таблица1[[#This Row],[План ДВН, чел.]] -> -1 | H35: =ROUND(Таблица1[[#This Row],[Оплачено случаев]]/Таблица1[[#This Row],[План ДВН, чел.]]*100,1) -> 0 | K35: 0.49751519 | P35: 0.68432427 | U35: 0.88099542 | Z35: 0.7461207 | AE35: 0.68810793 | AJ35: 0.56140887 | AO35: 0.87693102 | AT35: 1.17979943 | AY35: 1.11322133 | BD35: 1.88011957 | BI35: 1.63292902
A36: Февраль | B36: ДВН | C36: ЧУЗ "Больница "РЖД - Медицина" | D36: 11 | E36: 21.26425 | F36: 26 | G36: =Таблица1[[#This Row],[Оплачено случаев]]-Таблица1[[#This Row],[План ДВН, чел.]] -> -15 | H36: =ROUND(Таблица1[[#This Row],[Оплачено случаев]]/Таблица1[[#This Row],[План ДВН, чел.]]*100,1) -> 42.3 | K36: 0.84785621 | P36: 1.02177102 | U36: 1.07755804 | Z36: 0.93689821 | AE36: 0.91928995 | AJ36: 0.79172758 | AO36: 0.91237049 | AT36: 0.60899058 | AY36: 0.64542852 | BD36: 0.86174831 | BI36: 0.98370811
A37: Февраль | B37: ДВН | C37: КБ № 8 ФМБА | D37: 256 | E37: 543.74157 | F37: 730 | G37: =Таблица1[[#This Row],[Оплачено случаев]]-Таблица1[[#This Row],[План ДВН, чел.]] -> -474 | H37: =ROUND(Таблица1[[#This Row],[Оплачено случаев]]/Таблица1[[#This Row],[План ДВН, чел.]]*100,1) -> 35.1 | K37: 0.27178458 | P37: 0 | U37: 0 | Z37: 0.2160341 | AE37: 0.47548861 | AJ37: 0.09947684 | AO37: 0.05048805 | AT37: 0 | AY37: 0 | BD37: 0.00178183 | BI37: 0.01152691
A38: Февраль | B38: ДВН | C38: ЦРБ Бабынинского района | D38: 44 | E38: 83.31055 | F38: 116 | G38: =Таблица1[[#This Row],[Оплачено случаев]]-Таблица1[[#This Row],[План ДВН, чел.]] -> -72 | H38: =ROUND(Таблица1[[#This Row],[Оплачено случаев]]/Таблица1[[#This Row],[План ДВН, чел.]]*100,1) -> 37.9 | K38: 0 | P38: 0 | U38: 0.00302377 | Z38: 0.00371168 | AE38: 0 | AJ38: 0 | AO38: 0 | AT38: 0 | AY38: 0 | BD38: 0 | BI38: 0
A39: Февраль | B39: ДВН | C39: ЦРБ Боровского района | D39: 190 | E39: 379.98611 | F39: 325 | G39: =Таблица1[[#This Row],[Оплачено случаев]]-Таблица1[[#This Row],[План ДВН, чел.]] -> -135 | H39: =ROUND(Таблица1[[#This Row],[Оплачено случаев]]/Таблица1[[#This Row],[План ДВН, чел.]]*100,1) -> 58.5 | K39: 0 | P39: 0 | U39: 0 | Z39: 0 | AE39: 0 | AJ39: 0 | AO39: 0 | AT39: 0 | AY39: 0 | BD39: 0 | BI39: 0
A40: Февраль | B40: ДВН | C40: ЦРБ Жуковского района | D40: 87 | E40: 177.21642 | F40: 80 | G40: =Таблица1[[#This Row],[Оплачено случаев]]-Таблица1[[#This Row],[План ДВН, чел.]] -> 7 | H40: =ROUND(Таблица1[[#This Row],[Оплачено случаев]]/Таблица1[[#This Row],[План ДВН, чел.]]*100,1) -> 108.8 | K40: 0.00416127 | P40: 0.02126425 | U40: 0.00178183 | Z40: 0.00549255 | AE40: 0.02615612 | AJ40: 0.17797857 | AO40: 0.02328503 | AT40: 0.03334981 | AY40: 0.09545354 | BD40: 0.19150892 | BI40: 0.14544839
A41: Февраль | B41: ДВН | C41: ГП "Город Кременки" | D41: 15 | E41: 33.76366 | F41: 26 | G41: =Таблица1[[#This Row],[Оплачено случаев]]-Таблица1[[#This Row],[План ДВН, чел.]] -> -11 | H41: =ROUND(Таблица1[[#This Row],[Оплачено случаев]]/Таблица1[[#This Row],[План ДВН, чел.]]*100,1) -> 57.7 | K41: 0.38402384 | P41: 0.54374157 | U41: 0.80707619 | Z41: 1.10917696 | AE41: 1.00787953 | AJ41: 1.60809292 | AO41: 1.94234752 | AT41: 1.83043006 | AY41: 2.7918744 | BD41: 2.74667884 | BI41: 2.56365962
A42: Февраль | B42: ДВН | C42: ЦРБ Малоярославецкого района | D42: 141 | E42: 292.40995 | F42: 160 | G42: =Таблица1[[#This Row],[Оплачено случаев]]-Таблица1[[#This Row],[План ДВН, чел.]] -> -19 | H42: =ROUND(Таблица1[[#This Row],[Оплачено случаев]]/Таблица1[[#This Row],[План ДВН, чел.]]*100,1) -> 88.1 | K42: 0.03761583 | P42: 0.08331055 | U42: 0.07531021 | Z42: 0.09677313 | AE42: 0.15603699 | AJ42: 0.01854332 | AO42: 0.30533681 | AT42: 0.6393687 | AY42: 0.14102173 | BD42: 0.10647338 | BI42: 0.11187532
A43: Февраль | B43: ДВН | C43: ЦРБ Тарусского района | D43: 13 | E43: 26.35851 | F43: 39 | G43: =Таблица1[[#This Row],[Оплачено случаев]]-Таблица1[[#This Row],[План ДВН, чел.]] -> -26 | H43: =ROUND(Таблица1[[#This Row],[Оплачено случаев]]/Таблица1[[#This Row],[План ДВН, чел.]]*100,1) -> 33.3 | K43: 0.28808102 | P43: 0.37998611 | U43: 0.61722263 | Z43: 0.15501578 | AE43: 0.77610561 | AJ43: 0.37386968 | AO43: 0.35365913 | AT43: 0.28885565 | AY43: 0.36546785 | BD43: 0.27579358 | BI43: 0.70699967
A44: Март | B44: ДВН | C44: ЦМБ № 1 | D44: =T4 -> 150 | E44: =U4 -> 294.38499 | F44: =V4 -> 134 | G44: =Таблица1[[#This Row],[Оплачено случаев]]-Таблица1[[#This Row],[План ДВН, чел.]] -> 16 | H44: =ROUND(Таблица1[[#This Row],[Оплачено случаев]]/Таблица1[[#This Row],[План ДВН, чел.]]*100,1) -> 111.9 | K44: 0.03691347 | P44: 0.17721642 | U44: 0.09486455 | Z44: 0.19318555 | AE44: 0.12907748 | AJ44: 0.08160737 | AO44: 0.16865376 | AT44: 0.14715862 | AY44: 0.38015841 | BD44: 0.61015918 | BI44: 1.40815454
A45: Март | B45: ДВН | C45: ЦМБ № 2 | D45: 344 | E45: 683.00171 | F45: 281 | G45: =Таблица1[[#This Row],[Оплачено случаев]]-Таблица1[[#This Row],[План ДВН, чел.]] -> 63 | H45: =ROUND(Таблица1[[#This Row],[Оплачено случаев]]/Таблица1[[#This Row],[План ДВН, чел.]]*100,1) -> 122.4 | K45: 0.0157775 | P45: 0.03376366 | U45: 0.06078362 | Z45: 0.04889668 | AE45: 0.08172154 | AJ45: 0.07536609 | AO45: 0.08586573 | AT45: 0.06393105 | AY45: 0.03907461 | BD45: 0.07958065 | BI45: 0.03829401
A46: Март | B46: ДВН | C46: ЦМБ № 3 | D46: 215 | E46: 432.52963 | F46: 165 | G46: =Таблица1[[#This Row],[Оплачено случаев]]-Таблица1[[#This Row],[План ДВН, чел.]] -> 50 | H46: =ROUND(Таблица1[[#This Row],[Оплачено случаев]]/Таблица1[[#This Row],[План ДВН, чел.]]*100,1) -> 130.3 | K46: 0.19090193 | P46: 0.29240995 | U46: 0.30552587 | Z46: 0.33304042 | AE46: 0.34135122 | AJ46: 0.29879992 | AO46: 0.17528644 | AT46: 0.24456083 | AY46: 0.23749152 | BD46: 0.23856223 | BI46: 0.31546719
A47: Март | B47: ДВН | C47: ЦМБ № 4 | D47: 32 | E47: 69.09233 | F47: 52 | G47: =Таблица1[[#This Row],[Оплачено случаев]]-Таблица1[[#This Row],[План ДВН, чел.]] -> -20 | H47: =ROUND(Таблица1[[#This Row],[Оплачено случаев]]/Таблица1[[#This Row],[План ДВН, чел.]]*100,1) -> 61.5 | K47: =K23/1000 -> 0.05664404 | P47: 0.02635851 | U47: 0.05016085 | Z47: 0.15218804 | AE47: 0.09024009 | AJ47: 0.28961513 | AO47: 0.09320206 | AT47: 0.09187705 | AY47: 0.09905509 | BD47: 0.14806321 | BI47: 0.05962983
A48: Март | B48: ДВН | C48: ЦМБ № 5 | D48: 181 | E48: 380.03668 | F48: 214 | G48: =Таблица1[[#This Row],[Оплачено случаев]]-Таблица1[[#This Row],[План ДВН, чел.]] -> -33 | H48: =ROUND(Таблица1[[#This Row],[Оплачено случаев]]/Таблица1[[#This Row],[План ДВН, чел.]]*100,1) -> 84.6
A49: Март | B49: ДВН | C49: ЦМБ № 6 | D49: 377 | E49: 778.17926 | F49: 343 | G49: =Таблица1[[#This Row],[Оплачено случаев]]-Таблица1[[#This Row],[План ДВН, чел.]] -> 34 | H49: =ROUND(Таблица1[[#This Row],[Оплачено случаев]]/Таблица1[[#This Row],[План ДВН, чел.]]*100,1) -> 109.9
A50: Март | B50: ДВН | C50: КГБ № 5 | D50: 911 | E50: 1840.25206 | F50: 1005 | G50: =Таблица1[[#This Row],[Оплачено случаев]]-Таблица1[[#This Row],[План ДВН, чел.]] -> -94 | H50: =ROUND(Таблица1[[#This Row],[Оплачено случаев]]/Таблица1[[#This Row],[План ДВН, чел.]]*100,1) -> 90.6
A51: Март | B51: ДВН | C51: КГКБ № 4 | D51: 433 | E51: 880.99542 | F51: 430 | G51: =Таблица1[[#This Row],[Оплачено случаев]]-Таблица1[[#This Row],[План ДВН, чел.]] -> 3 | H51: =ROUND(Таблица1[[#This Row],[Оплачено случаев]]/Таблица1[[#This Row],[План ДВН, чел.]]*100,1) -> 100.7
A52: Март | B52: ДВН | C52: Городская поликлиника | D52: 512 | E52: 1077.55804 | F52: 562 | G52: =Таблица1[[#This Row],[Оплачено случаев]]-Таблица1[[#This Row],[План ДВН, чел.]] -> -50 | H52: =ROUND(Таблица1[[#This Row],[Оплачено случаев]]/Таблица1[[#This Row],[План ДВН, чел.]]*100,1) -> 91.1
A53: Март | B53: ДВН | C53: МСЧ № 1 г. Калуги | D53: 0 | E53: 0 | F53: 55 | G53: =Таблица1[[#This Row],[Оплачено случаев]]-Таблица1[[#This Row],[План ДВН, чел.]] -> -55 | H53: =ROUND(Таблица1[[#This Row],[Оплачено случаев]]/Таблица1[[#This Row],[План ДВН, чел.]]*100,1) -> 0
A54: Март | B54: ДВН | C54: МСЧ № 2 г. Калуги | D54: 2 | E54: 3.02377 | F54: 1 | G54: =Таблица1[[#This Row],[Оплачено случаев]]-Таблица1[[#This Row],[План ДВН, чел.]] -> 1 | H54: =ROUND(Таблица1[[#This Row],[Оплачено случаев]]/Таблица1[[#This Row],[План ДВН, чел.]]*100,1) -> 200
A55: Март | B55: ДВН | C55: МСЧ МВД | D55: 0 | E55: 0 | F55: 1 | G55: =Таблица1[[#This Row],[Оплачено случаев]]-Таблица1[[#This Row],[План ДВН, чел.]] -> -1 | H55: =ROUND(Таблица1[[#This Row],[Оплачено случаев]]/Таблица1[[#This Row],[План ДВН, чел.]]*100,1) -> 0
A56: Март | B56: ДВН | C56: ЧУЗ "Больница "РЖД - Медицина" | D56: 1 | E56: 1.78183 | F56: 26 | G56: =Таблица1[[#This Row],[Оплачено случаев]]-Таблица1[[#This Row],[План ДВН, чел.]] -> -25 | H56: =ROUND(Таблица1[[#This Row],[Оплачено случаев]]/Таблица1[[#This Row],[План ДВН, чел.]]*100,1) -> 3.8
A57: Март | B57: ДВН | C57: КБ № 8 ФМБА | D57: 397 | E57: 807.07619 | F57: 730 | G57: =Таблица1[[#This Row],[Оплачено случаев]]-Таблица1[[#This Row],[План ДВН, чел.]] -> -333 | H57: =ROUND(Таблица1[[#This Row],[Оплачено случаев]]/Таблица1[[#This Row],[План ДВН, чел.]]*100,1) -> 54.4
A58: Март | B58: ДВН | C58: ЦРБ Бабынинского района | D58: 40 | E58: 75.31021 | F58: 116 | G58: =Таблица1[[#This Row],[Оплачено случаев]]-Таблица1[[#This Row],[План ДВН, чел.]] -> -76 | H58: =ROUND(Таблица1[[#This Row],[Оплачено случаев]]/Таблица1[[#This Row],[План ДВН, чел.]]*100,1) -> 34.5
A59: Март | B59: ДВН | C59: ЦРБ Боровского района | D59: 310 | E59: 617.22263 | F59: 335 | G59: =Таблица1[[#This Row],[Оплачено случаев]]-Таблица1[[#This Row],[План ДВН, чел.]] -> -25 | H59: =ROUND(Таблица1[[#This Row],[Оплачено случаев]]/Таблица1[[#This Row],[План ДВН, чел.]]*100,1) -> 92.5
A60: Март | B60: ДВН | C60: ЦРБ Жуковского района | D60: 47 | E60: 94.86455 | F60: 82 | G60: =Таблица1[[#This Row],[Оплачено случаев]]-Таблица1[[#This Row],[План ДВН, чел.]] -> -35 | H60: =ROUND(Таблица1[[#This Row],[Оплачено случаев]]/Таблица1[[#This Row],[План ДВН, чел.]]*100,1) -> 57.3
A61: Март | B61: ДВН | C61: ГП "Город Кременки" | D61: 27 | E61: 60.78362 | F61: 28 | G61: =Таблица1[[#This Row],[Оплачено случаев]]-Таблица1[[#This Row],[План ДВН, чел.]] -> -1 | H61: =ROUND(Таблица1[[#This Row],[Оплачено случаев]]/Таблица1[[#This Row],[План ДВН, чел.]]*100,1) -> 96.4
A62: Март | B62: ДВН | C62: ЦРБ Малоярославецкого района | D62: 153 | E62: 305.52587 | F62: 160 | G62: =Таблица1[[#This Row],[Оплачено случаев]]-Таблица1[[#This Row],[План ДВН, чел.]] -> -7 | H62: =ROUND(Таблица1[[#This Row],[Оплачено случаев]]/Таблица1[[#This Row],[План ДВН, чел.]]*100,1) -> 95.6
A63: Март | B63: ДВН | C63: ЦРБ Тарусского района | D63: 22 | E63: 50.16085 | F63: 91 | G63: =Таблица1[[#This Row],[Оплачено случаев]]-Таблица1[[#This Row],[План ДВН, чел.]] -> -69 | H63: =ROUND(Таблица1[[#This Row],[Оплачено случаев]]/Таблица1[[#This Row],[План ДВН, чел.]]*100,1) -> 24.2
A64: Апрель | B64: ДВН | C64: ЦМБ № 1 | D64: =Y4 -> 76 | E64: =Z4 -> 153.67827 | F64: =AA4 -> 139 | G64: =Таблица1[[#This Row],[Оплачено случаев]]-Таблица1[[#This Row],[План ДВН, чел.]] -> -63 | H64: =ROUND(Таблица1[[#This Row],[Оплачено случаев]]/Таблица1[[#This Row],[План ДВН, чел.]]*100,1) -> 54.7
A65: Апрель | B65: ДВН | C65: ЦМБ № 2 | D65: 120 | E65: 235.76988 | F65: 337 | G65: =Таблица1[[#This Row],[Оплачено случаев]]-Таблица1[[#This Row],[План ДВН, чел.]] -> -217 | H65: =ROUND(Таблица1[[#This Row],[Оплачено случаев]]/Таблица1[[#This Row],[План ДВН, чел.]]*100,1) -> 35.6
A66: Апрель | B66: ДВН | C66: ЦМБ № 3 | D66: 225 | E66: 455.32581 | F66: 165 | G66: =Таблица1[[#This Row],[Оплачено случаев]]-Таблица1[[#This Row],[План ДВН, чел.]] -> 60 | H66: =ROUND(Таблица1[[#This Row],[Оплачено случаев]]/Таблица1[[#This Row],[План ДВН, чел.]]*100,1) -> 136.4
A67: Апрель | B67: ДВН | C67: ЦМБ № 4 | D67: 81 | E67: 163.85557 | F67: 52 | G67: =Таблица1[[#This Row],[Оплачено случаев]]-Таблица1[[#This Row],[План ДВН, чел.]] -> 29 | H67: =ROUND(Таблица1[[#This Row],[Оплачено случаев]]/Таблица1[[#This Row],[План ДВН, чел.]]*100,1) -> 155.8
A68: Апрель | B68: ДВН | C68: ЦМБ № 5 | D68: 159 | E68: 335.49326 | F68: 204 | G68: =Таблица1[[#This Row],[Оплачено случаев]]-Таблица1[[#This Row],[План ДВН, чел.]] -> -45 | H68: =ROUND(Таблица1[[#This Row],[Оплачено случаев]]/Таблица1[[#This Row],[План ДВН, чел.]]*100,1) -> 77.9
A69: Апрель | B69: ДВН | C69: ЦМБ № 6 | D69: 224 | E69: 436.89094 | F69: 343 | G69: =Таблица1[[#This Row],[Оплачено случаев]]-Таблица1[[#This Row],[План ДВН, чел.]] -> -119 | H69: =ROUND(Таблица1[[#This Row],[Оплачено случаев]]/Таблица1[[#This Row],[План ДВН, чел.]]*100,1) -> 65.3
A70: Апрель | B70: ДВН | C70: КГБ № 5 | D70: 778 | E70: 1541.5336 | F70: 1005 | G70: =Таблица1[[#This Row],[Оплачено случаев]]-Таблица1[[#This Row],[План ДВН, чел.]] -> -227 | H70: =ROUND(Таблица1[[#This Row],[Оплачено случаев]]/Таблица1[[#This Row],[План ДВН, чел.]]*100,1) -> 77.4
A71: Апрель | B71: ДВН | C71: КГКБ № 4 | D71: 365 | E71: 746.1207 | F71: 430 | G71: =Таблица1[[#This Row],[Оплачено случаев]]-Таблица1[[#This Row],[План ДВН, чел.]] -> -65 | H71: =ROUND(Таблица1[[#This Row],[Оплачено случаев]]/Таблица1[[#This Row],[План ДВН, чел.]]*100,1) -> 84.9
A72: Апрель | B72: ДВН | C72: Городская поликлиника | D72: 446 | E72: 936.89821 | F72: 562 | G72: =Таблица1[[#This Row],[Оплачено случаев]]-Таблица1[[#This Row],[План ДВН, чел.]] -> -116 | H72: =ROUND(Таблица1[[#This Row],[Оплачено случаев]]/Таблица1[[#This Row],[План ДВН, чел.]]*100,1) -> 79.4
A73: Апрель | B73: ДВН | C73: МСЧ № 1 г. Калуги | D73: 107 | E73: 216.0341 | F73: 55 | G73: =Таблица1[[#This Row],[Оплачено случаев]]-Таблица1[[#This Row],[План ДВН, чел.]] -> 52 | H73: =ROUND(Таблица1[[#This Row],[Оплачено случаев]]/Таблица1[[#This Row],[План ДВН, чел.]]*100,1) -> 194.5
A74: Апрель | B74: ДВН | C74: МСЧ № 2 г. Калуги | D74: 2 | E74: 3.71168 | F74: 1 | G74: =Таблица1[[#This Row],[Оплачено случаев]]-Таблица1[[#This Row],[План ДВН, чел.]] -> 1 | H74: =ROUND(Таблица1[[#This Row],[Оплачено случаев]]/Таблица1[[#This Row],[План ДВН, чел.]]*100,1) -> 200
A75: Апрель | B75: ДВН | C75: МСЧ МВД | D75: 0 | E75: 0 | F75: 1 | G75: =Таблица1[[#This Row],[Оплачено случаев]]-Таблица1[[#This Row],[План ДВН, чел.]] -> -1 | H75: =ROUND(Таблица1[[#This Row],[Оплачено случаев]]/Таблица1[[#This Row],[План ДВН, чел.]]*100,1) -> 0
A76: Апрель | B76: ДВН | C76: ЧУЗ "Больница "РЖД - Медицина" | D76: 3 | E76: 5.49255 | F76: 26 | G76: =Таблица1[[#This Row],[Оплачено случаев]]-Таблица1[[#This Row],[План ДВН, чел.]] -> -23 | H76: =ROUND(Таблица1[[#This Row],[Оплачено случаев]]/Таблица1[[#This Row],[План ДВН, чел.]]*100,1) -> 11.5
A77: Апрель | B77: ДВН | C77: КБ № 8 ФМБА | D77: 545 | E77: 1109.17696 | F77: 730 | G77: =Таблица1[[#This Row],[Оплачено случаев]]-Таблица1[[#This Row],[План ДВН, чел.]] -> -185 | H77: =ROUND(Таблица1[[#This Row],[Оплачено случаев]]/Таблица1[[#This Row],[План ДВН, чел.]]*100,1) -> 74.7
A78: Апрель | B78: ДВН | C78: ЦРБ Бабынинского района | D78: 50 | E78: 96.77313 | F78: 116 | G78: =Таблица1[[#This Row],[Оплачено случаев]]-Таблица1[[#This Row],[План ДВН, чел.]] -> -66 | H78: =ROUND(Таблица1[[#This Row],[Оплачено случаев]]/Таблица1[[#This Row],[План ДВН, чел.]]*100,1) -> 43.1
A79: Апрель | B79: ДВН | C79: ЦРБ Боровского района | D79: 73 | E79: 155.01578 | F79: 335 | G79: =Таблица1[[#This Row],[Оплачено случаев]]-Таблица1[[#This Row],[План ДВН, чел.]] -> -262 | H79: =ROUND(Таблица1[[#This Row],[Оплачено случаев]]/Таблица1[[#This Row],[План ДВН, чел.]]*100,1) -> 21.8
A80: Апрель | B80: ДВН | C80: ЦРБ Жуковского района | D80: 88 | E80: 193.18555 | F80: 82 | G80: =Таблица1[[#This Row],[Оплачено случаев]]-Таблица1[[#This Row],[План ДВН, чел.]] -> 6 | H80: =ROUND(Таблица1[[#This Row],[Оплачено случаев]]/Таблица1[[#This Row],[План ДВН, чел.]]*100,1) -> 107.3
A81: Апрель | B81: ДВН | C81: ГП "Город Кременки" | D81: 22 | E81: 48.89668 | F81: 28 | G81: =Таблица1[[#This Row],[Оплачено случаев]]-Таблица1[[#This Row],[План ДВН, чел.]] -> -6 | H81: =ROUND(Таблица1[[#This Row],[Оплачено случаев]]/Таблица1[[#This Row],[План ДВН, чел.]]*100,1) -> 78.6
A82: Апрель | B82: ДВН | C82: ЦРБ Малоярославецкого района | D82: 166 | E82: 333.04042 | F82: 160 | G82: =Таблица1[[#This Row],[Оплачено случаев]]-Таблица1[[#This Row],[План ДВН, чел.]] -> 6 | H82: =ROUND(Таблица1[[#This Row],[Оплачено случаев]]/Таблица1[[#This Row],[План ДВН, чел.]]*100,1) -> 103.8
A83: Апрель | B83: ДВН | C83: ЦРБ Тарусского района | D83: 73 | E83: 152.18804 | F83: 98 | G83: =Таблица1[[#This Row],[Оплачено случаев]]-Таблица1[[#This Row],[План ДВН, чел.]] -> -25 | H83: =ROUND(Таблица1[[#This Row],[Оплачено случаев]]/Таблица1[[#This Row],[План ДВН, чел.]]*100,1) -> 74.5
A84: Май | B84: ДВН | C84: ЦМБ № 1 | D84: =AD4 -> 116 | E84: =AE4 -> 229.46626 | F84: =AF4 -> 131 | G84: =Таблица1[[#This Row],[Оплачено случаев]]-Таблица1[[#This Row],[План ДВН, чел.]] -> -15 | H84: =ROUND(Таблица1[[#This Row],[Оплачено случаев]]/Таблица1[[#This Row],[План ДВН, чел.]]*100,1) -> 88.5
A85: Май | B85: ДВН | C85: ЦМБ № 2 | D85: 162 | E85: 333.87092 | F85: 343 | G85: =Таблица1[[#This Row],[Оплачено случаев]]-Таблица1[[#This Row],[План ДВН, чел.]] -> -181 | H85: =ROUND(Таблица1[[#This Row],[Оплачено случаев]]/Таблица1[[#This Row],[План ДВН, чел.]]*100,1) -> 47.2
A86: Май | B86: ДВН | C86: ЦМБ № 3 | D86: 152 | E86: 309.94818 | F86: 165 | G86: =Таблица1[[#This Row],[Оплачено случаев]]-Таблица1[[#This Row],[План ДВН, чел.]] -> -13 | H86: =ROUND(Таблица1[[#This Row],[Оплачено случаев]]/Таблица1[[#This Row],[План ДВН, чел.]]*100,1) -> 92.1
A87: Май | B87: ДВН | C87: ЦМБ № 4 | D87: 46 | E87: 96.0413 | F87: 52 | G87: =Таблица1[[#This Row],[Оплачено случаев]]-Таблица1[[#This Row],[План ДВН, чел.]] -> -6 | H87: =ROUND(Таблица1[[#This Row],[Оплачено случаев]]/Таблица1[[#This Row],[План ДВН, чел.]]*100,1) -> 88.5
A88: Май | B88: ДВН | C88: ЦМБ № 5 | D88: 143 | E88: 288.03887 | F88: 172 | G88: =Таблица1[[#This Row],[Оплачено случаев]]-Таблица1[[#This Row],[План ДВН, чел.]] -> -29 | H88: =ROUND(Таблица1[[#This Row],[Оплачено случаев]]/Таблица1[[#This Row],[План ДВН, чел.]]*100,1) -> 83.1
A89: Май | B89: ДВН | C89: ЦМБ № 6 | D89: 251 | E89: 504.11086 | F89: 243 | G89: =Таблица1[[#This Row],[Оплачено случаев]]-Таблица1[[#This Row],[План ДВН, чел.]] -> 8 | H89: =ROUND(Таблица1[[#This Row],[Оплачено случаев]]/Таблица1[[#This Row],[План ДВН, чел.]]*100,1) -> 103.3
A90: Май | B90: ДВН | C90: КГБ № 5 | D90: 1050 | E90: 2154.8405 | F90: 1005 | G90: =Таблица1[[#This Row],[Оплачено случаев]]-Таблица1[[#This Row],[План ДВН, чел.]] -> 45 | H90: =ROUND(Таблица1[[#This Row],[Оплачено случаев]]/Таблица1[[#This Row],[План ДВН, чел.]]*100,1) -> 104.5
A91: Май | B91: ДВН | C91: КГКБ № 4 | D91: 329 | E91: 688.10793 | F91: 430 | G91: =Таблица1[[#This Row],[Оплачено случаев]]-Таблица1[[#This Row],[План ДВН, чел.]] -> -101 | H91: =ROUND(Таблица1[[#This Row],[Оплачено случаев]]/Таблица1[[#This Row],[План ДВН, чел.]]*100,1) -> 76.5
A92: Май | B92: ДВН | C92: Городская поликлиника | D92: 426 | E92: 919.28995 | F92: 562 | G92: =Таблица1[[#This Row],[Оплачено случаев]]-Таблица1[[#This Row],[План ДВН, чел.]] -> -136 | H92: =ROUND(Таблица1[[#This Row],[Оплачено случаев]]/Таблица1[[#This Row],[План ДВН, чел.]]*100,1) -> 75.8
A93: Май | B93: ДВН | C93: МСЧ № 1 г. Калуги | D93: 259 | E93: 475.48861 | F93: 55 | G93: =Таблица1[[#This Row],[Оплачено случаев]]-Таблица1[[#This Row],[План ДВН, чел.]] -> 204 | H93: =ROUND(Таблица1[[#This Row],[Оплачено случаев]]/Таблица1[[#This Row],[План ДВН, чел.]]*100,1) -> 470.9
A94: Май | B94: ДВН | C94: МСЧ № 2 г. Калуги | D94: 0 | E94: 0 | F94: 1 | G94: =Таблица1[[#This Row],[Оплачено случаев]]-Таблица1[[#This Row],[План ДВН, чел.]] -> -1 | H94: =ROUND(Таблица1[[#This Row],[Оплачено случаев]]/Таблица1[[#This Row],[План ДВН, чел.]]*100,1) -> 0
A95: Май | B95: ДВН | C95: МСЧ МВД | D95: 0 | E95: 0 | F95: 1 | G95: =Таблица1[[#This Row],[Оплачено случаев]]-Таблица1[[#This Row],[План ДВН, чел.]] -> -1 | H95: =ROUND(Таблица1[[#This Row],[Оплачено случаев]]/Таблица1[[#This Row],[План ДВН, чел.]]*100,1) -> 0
A96: Май | B96: ДВН | C96: ЧУЗ "Больница "РЖД - Медицина" | D96: 16 | E96: 26.15612 | F96: 26 | G96: =Таблица1[[#This Row],[Оплачено случаев]]-Таблица1[[#This Row],[План ДВН, чел.]] -> -10 | H96: =ROUND(Таблица1[[#This Row],[Оплачено случаев]]/Таблица1[[#This Row],[План ДВН, чел.]]*100,1) -> 61.5
A97: Май | B97: ДВН | C97: КБ № 8 ФМБА | D97: 480 | E97: 1007.87953 | F97: 730 | G97: =Таблица1[[#This Row],[Оплачено случаев]]-Таблица1[[#This Row],[План ДВН, чел.]] -> -250 | H97: =ROUND(Таблица1[[#This Row],[Оплачено случаев]]/Таблица1[[#This Row],[План ДВН, чел.]]*100,1) -> 65.8
A98: Май | B98: ДВН | C98: ЦРБ Бабынинского района | D98: 78 | E98: 156.03699 | F98: 116 | G98: =Таблица1[[#This Row],[Оплачено случаев]]-Таблица1[[#This Row],[План ДВН, чел.]] -> -38 | H98: =ROUND(Таблица1[[#This Row],[Оплачено случаев]]/Таблица1[[#This Row],[План ДВН, чел.]]*100,1) -> 67.2
A99: Май | B99: ДВН | C99: ЦРБ Боровского района | D99: 381 | E99: 776.10561 | F99: 12 | G99: =Таблица1[[#This Row],[Оплачено случаев]]-Таблица1[[#This Row],[План ДВН, чел.]] -> 369 | H99: =ROUND(Таблица1[[#This Row],[Оплачено случаев]]/Таблица1[[#This Row],[План ДВН, чел.]]*100,1) -> 3175
A100: Май | B100: ДВН | C100: ЦРБ Жуковского района | D100: 62 | E100: 129.07748 | F100: 82 | G100: =Таблица1[[#This Row],[Оплачено случаев]]-Таблица1[[#This Row],[План ДВН, чел.]] -> -20 | H100: =ROUND(Таблица1[[#This Row],[Оплачено случаев]]/Таблица1[[#This Row],[План ДВН, чел.]]*100,1) -> 75.6
A101: Май | B101: ДВН | C101: ГП "Город Кременки" | D101: 34 | E101: 81.72154 | F101: 28 | G101: =Таблица1[[#This Row],[Оплачено случаев]]-Таблица1[[#This Row],[План ДВН, чел.]] -> 6 | H101: =ROUND(Таблица1[[#This Row],[Оплачено случаев]]/Таблица1[[#This Row],[План ДВН, чел.]]*100,1) -> 121.4
A102: Май | B102: ДВН | C102: ЦРБ Малоярославецкого района | D102: 169 | E102: 341.35122 | F102: 160 | G102: =Таблица1[[#This Row],[Оплачено случаев]]-Таблица1[[#This Row],[План ДВН, чел.]] -> 9 | H102: =ROUND(Таблица1[[#This Row],[Оплачено случаев]]/Таблица1[[#This Row],[План ДВН, чел.]]*100,1) -> 105.6
A103: Май | B103: ДВН | C103: ЦРБ Тарусского района | D103: 42 | E103: 90.24009 | F103: 93 | G103: =Таблица1[[#This Row],[Оплачено случаев]]-Таблица1[[#This Row],[План ДВН, чел.]] -> -51 | H103: =ROUND(Таблица1[[#This Row],[Оплачено случаев]]/Таблица1[[#This Row],[План ДВН, чел.]]*100,1) -> 45.2
A104: Июнь | B104: ДВН | C104: ЦМБ № 1 | D104: =AI4 -> 130 | E104: =AJ4 -> 264.0644 | F104: =AK4 -> 135 | G104: =Таблица1[[#This Row],[Оплачено случаев]]-Таблица1[[#This Row],[План ДВН, чел.]] -> -5 | H104: =ROUND(Таблица1[[#This Row],[Оплачено случаев]]/Таблица1[[#This Row],[План ДВН, чел.]]*100,1) -> 96.3
A105: Июнь | B105: ДВН | C105: ЦМБ № 2 | D105: 313 | E105: 633.77503 | F105: 342 | G105: =Таблица1[[#This Row],[Оплачено случаев]]-Таблица1[[#This Row],[План ДВН, чел.]] -> -29 | H105: =ROUND(Таблица1[[#This Row],[Оплачено случаев]]/Таблица1[[#This Row],[План ДВН, чел.]]*100,1) -> 91.5
A106: Июнь | B106: ДВН | C106: ЦМБ № 3 | D106: 118 | E106: 234.01934 | F106: 165 | G106: =Таблица1[[#This Row],[Оплачено случаев]]-Таблица1[[#This Row],[План ДВН, чел.]] -> -47 | H106: =ROUND(Таблица1[[#This Row],[Оплачено случаев]]/Таблица1[[#This Row],[План ДВН, чел.]]*100,1) -> 71.5
A107: Июнь | B107: ДВН | C107: ЦМБ № 4 | D107: 13 | E107: 25.90254 | F107: 44 | G107: =Таблица1[[#This Row],[Оплачено случаев]]-Таблица1[[#This Row],[План ДВН, чел.]] -> -31 | H107: =ROUND(Таблица1[[#This Row],[Оплачено случаев]]/Таблица1[[#This Row],[План ДВН, чел.]]*100,1) -> 29.5
A108: Июнь | B108: ДВН | C108: ЦМБ № 5 | D108: 234 | E108: 497.66705 | F108: 221 | G108: =Таблица1[[#This Row],[Оплачено случаев]]-Таблица1[[#This Row],[План ДВН, чел.]] -> 13 | H108: =ROUND(Таблица1[[#This Row],[Оплачено случаев]]/Таблица1[[#This Row],[План ДВН, чел.]]*100,1) -> 105.9
A109: Июнь | B109: ДВН | C109: ЦМБ № 6 | D109: 216 | E109: 443.51659 | F109: 243 | G109: =Таблица1[[#This Row],[Оплачено случаев]]-Таблица1[[#This Row],[План ДВН, чел.]] -> -27 | H109: =ROUND(Таблица1[[#This Row],[Оплачено случаев]]/Таблица1[[#This Row],[План ДВН, чел.]]*100,1) -> 88.9
A110: Июнь | B110: ДВН | C110: КГБ № 5 | D110: 1035 | E110: 2065.94461 | F110: 1005 | G110: =Таблица1[[#This Row],[Оплачено случаев]]-Таблица1[[#This Row],[План ДВН, чел.]] -> 30 | H110: =ROUND(Таблица1[[#This Row],[Оплачено случаев]]/Таблица1[[#This Row],[План ДВН, чел.]]*100,1) -> 103
A111: Июнь | B111: ДВН | C111: КГКБ № 4 | D111: 275 | E111: 561.40887 | F111: 430 | G111: =Таблица1[[#This Row],[Оплачено случаев]]-Таблица1[[#This Row],[План ДВН, чел.]] -> -155 | H111: =ROUND(Таблица1[[#This Row],[Оплачено случаев]]/Таблица1[[#This Row],[План ДВН, чел.]]*100,1) -> 64
A112: Июнь | B112: ДВН | C112: Городская поликлиника | D112: 373 | E112: 791.72758 | F112: 562 | G112: =Таблица1[[#This Row],[Оплачено случаев]]-Таблица1[[#This Row],[План ДВН, чел.]] -> -189 | H112: =ROUND(Таблица1[[#This Row],[Оплачено случаев]]/Таблица1[[#This Row],[План ДВН, чел.]]*100,1) -> 66.4
A113: Июнь | B113: ДВН | C113: МСЧ № 1 г. Калуги | D113: 54 | E113: 99.47684 | F113: 55 | G113: =Таблица1[[#This Row],[Оплачено случаев]]-Таблица1[[#This Row],[План ДВН, чел.]] -> -1 | H113: =ROUND(Таблица1[[#This Row],[Оплачено случаев]]/Таблица1[[#This Row],[План ДВН, чел.]]*100,1) -> 98.2
A114: Июнь | B114: ДВН | C114: МСЧ № 2 г. Калуги | D114: 0 | E114: 0 | F114: 1 | G114: =Таблица1[[#This Row],[Оплачено случаев]]-Таблица1[[#This Row],[План ДВН, чел.]] -> -1 | H114: =ROUND(Таблица1[[#This Row],[Оплачено случаев]]/Таблица1[[#This Row],[План ДВН, чел.]]*100,1) -> 0
A115: Июнь | B115: ДВН | C115: МСЧ МВД | D115: 0 | E115: 0 | F115: 1 | G115: =Таблица1[[#This Row],[Оплачено случаев]]-Таблица1[[#This Row],[План ДВН, чел.]] -> -1 | H115: =ROUND(Таблица1[[#This Row],[Оплачено случаев]]/Таблица1[[#This Row],[План ДВН, чел.]]*100,1) -> 0
A116: Июнь | B116: ДВН | C116: ЧУЗ "Больница "РЖД - Медицина" | D116: 97 | E116: 177.97857 | F116: 26 | G116: =Таблица1[[#This Row],[Оплачено случаев]]-Таблица1[[#This Row],[План ДВН, чел.]] -> 71 | H116: =ROUND(Таблица1[[#This Row],[Оплачено случаев]]/Таблица1[[#This Row],[План ДВН, чел.]]*100,1) -> 373.1
A117: Июнь | B117: ДВН | C117: КБ № 8 ФМБА | D117: 819 | E117: 1608.09292 | F117: 730 | G117: =Таблица1[[#This Row],[Оплачено случаев]]-Таблица1[[#This Row],[План ДВН, чел.]] -> 89 | H117: =ROUND(Таблица1[[#This Row],[Оплачено случаев]]/Таблица1[[#This Row],[План ДВН, чел.]]*100,1) -> 112.2
A118: Июнь | B118: ДВН | C118: ЦРБ Бабынинского района | D118: 9 | E118: 18.54332 | F118: 116 | G118: =Таблица1[[#This Row],[Оплачено случаев]]-Таблица1[[#This Row],[План ДВН, чел.]] -> -107 | H118: =ROUND(Таблица1[[#This Row],[Оплачено случаев]]/Таблица1[[#This Row],[План ДВН, чел.]]*100,1) -> 7.8
A119: Июнь | B119: ДВН | C119: ЦРБ Боровского района | D119: 183 | E119: 373.86968 | F119: 325 | G119: =Таблица1[[#This Row],[Оплачено случаев]]-Таблица1[[#This Row],[План ДВН, чел.]] -> -142 | H119: =ROUND(Таблица1[[#This Row],[Оплачено случаев]]/Таблица1[[#This Row],[План ДВН, чел.]]*100,1) -> 56.3
A120: Июнь | B120: ДВН | C120: ЦРБ Жуковского района | D120: 40 | E120: 81.60737 | F120: 82 | G120: =Таблица1[[#This Row],[Оплачено случаев]]-Таблица1[[#This Row],[План ДВН, чел.]] -> -42 | H120: =ROUND(Таблица1[[#This Row],[Оплачено случаев]]/Таблица1[[#This Row],[План ДВН, чел.]]*100,1) -> 48.8
A121: Июнь | B121: ДВН | C121: ГП "Город Кременки" | D121: 32 | E121: 75.36609 | F121: 28 | G121: =Таблица1[[#This Row],[Оплачено случаев]]-Таблица1[[#This Row],[План ДВН, чел.]] -> 4 | H121: =ROUND(Таблица1[[#This Row],[Оплачено случаев]]/Таблица1[[#This Row],[План ДВН, чел.]]*100,1) -> 114.3
A122: Июнь | B122: ДВН | C122: ЦРБ Малоярославецкого района | D122: 148 | E122: 298.79992 | F122: 160 | G122: =Таблица1[[#This Row],[Оплачено случаев]]-Таблица1[[#This Row],[План ДВН, чел.]] -> -12 | H122: =ROUND(Таблица1[[#This Row],[Оплачено случаев]]/Таблица1[[#This Row],[План ДВН, чел.]]*100,1) -> 92.5
A123: Июнь | B123: ДВН | C123: ЦРБ Тарусского района | D123: 133 | E123: 289.61513 | F123: 78 | G123: =Таблица1[[#This Row],[Оплачено случаев]]-Таблица1[[#This Row],[План ДВН, чел.]] -> 55 | H123: =ROUND(Таблица1[[#This Row],[Оплачено случаев]]/Таблица1[[#This Row],[План ДВН, чел.]]*100,1) -> 170.5
A124: Июль | B124: ДВН | C124: ЦМБ № 1 | D124: =AN4 -> 122 | E124: =AO4 -> 254.61507 | F124: =AP4 -> 139 | G124: =Таблица1[[#This Row],[Оплачено случаев]]-Таблица1[[#This Row],[План ДВН, чел.]] -> -17 | H124: =ROUND(Таблица1[[#This Row],[Оплачено случаев]]/Таблица1[[#This Row],[План ДВН, чел.]]*100,1) -> 87.8
A125: Июль | B125: ДВН | C125: ЦМБ № 2 | D125: 287 | E125: 619.70861 | F125: 350 | G125: =Таблица1[[#This Row],[Оплачено случаев]]-Таблица1[[#This Row],[План ДВН, чел.]] -> -63 | H125: =ROUND(Таблица1[[#This Row],[Оплачено случаев]]/Таблица1[[#This Row],[План ДВН, чел.]]*100,1) -> 82
A126: Июль | B126: ДВН | C126: ЦМБ № 3 | D126: 127 | E126: 251.48251 | F126: 165 | G126: =Таблица1[[#This Row],[Оплачено случаев]]-Таблица1[[#This Row],[План ДВН, чел.]] -> -38 | H126: =ROUND(Таблица1[[#This Row],[Оплачено случаев]]/Таблица1[[#This Row],[План ДВН, чел.]]*100,1) -> 77
A127: Июль | B127: ДВН | C127: ЦМБ № 4 | D127: 70 | E127: 141.85527 | F127: 42 | G127: =Таблица1[[#This Row],[Оплачено случаев]]-Таблица1[[#This Row],[План ДВН, чел.]] -> 28 | H127: =ROUND(Таблица1[[#This Row],[Оплачено случаев]]/Таблица1[[#This Row],[План ДВН, чел.]]*100,1) -> 166.7
A128: Июль | B128: ДВН | C128: ЦМБ № 5 | D128: 197 | E128: 411.86808 | F128: 204 | G128: =Таблица1[[#This Row],[Оплачено случаев]]-Таблица1[[#This Row],[План ДВН, чел.]] -> -7 | H128: =ROUND(Таблица1[[#This Row],[Оплачено случаев]]/Таблица1[[#This Row],[План ДВН, чел.]]*100,1) -> 96.6
A129: Июль | B129: ДВН | C129: ЦМБ № 6 | D129: 161 | E129: 332.1079 | F129: 343 | G129: =Таблица1[[#This Row],[Оплачено случаев]]-Таблица1[[#This Row],[План ДВН, чел.]] -> -182 | H129: =ROUND(Таблица1[[#This Row],[Оплачено случаев]]/Таблица1[[#This Row],[План ДВН, чел.]]*100,1) -> 46.9
A130: Июль | B130: ДВН | C130: КГБ № 5 | D130: 835 | E130: 1658.99124 | F130: 1005 | G130: =Таблица1[[#This Row],[Оплачено случаев]]-Таблица1[[#This Row],[План ДВН, чел.]] -> -170 | H130: =ROUND(Таблица1[[#This Row],[Оплачено случаев]]/Таблица1[[#This Row],[План ДВН, чел.]]*100,1) -> 83.1
A131: Июль | B131: ДВН | C131: КГКБ № 4 | D131: 427 | E131: 876.93102 | F131: 430 | G131: =Таблица1[[#This Row],[Оплачено случаев]]-Таблица1[[#This Row],[План ДВН, чел.]] -> -3 | H131: =ROUND(Таблица1[[#This Row],[Оплачено случаев]]/Таблица1[[#This Row],[План ДВН, чел.]]*100,1) -> 99.3
A132: Июль | B132: ДВН | C132: Городская поликлиника | D132: 427 | E132: 912.37049 | F132: 562 | G132: =Таблица1[[#This Row],[Оплачено случаев]]-Таблица1[[#This Row],[План ДВН, чел.]] -> -135 | H132: =ROUND(Таблица1[[#This Row],[Оплачено случаев]]/Таблица1[[#This Row],[План ДВН, чел.]]*100,1) -> 76
A133: Июль | B133: ДВН | C133: МСЧ № 1 г. Калуги | D133: 28 | E133: 50.48805 | F133: 55 | G133: =Таблица1[[#This Row],[Оплачено случаев]]-Таблица1[[#This Row],[План ДВН, чел.]] -> -27 | H133: =ROUND(Таблица1[[#This Row],[Оплачено случаев]]/Таблица1[[#This Row],[План ДВН, чел.]]*100,1) -> 50.9
A134: Июль | B134: ДВН | C134: МСЧ № 2 г. Калуги | D134: 0 | E134: 0 | F134: 1 | G134: =Таблица1[[#This Row],[Оплачено случаев]]-Таблица1[[#This Row],[План ДВН, чел.]] -> -1 | H134: =ROUND(Таблица1[[#This Row],[Оплачено случаев]]/Таблица1[[#This Row],[План ДВН, чел.]]*100,1) -> 0
A135: Июль | B135: ДВН | C135: МСЧ МВД | D135: 0 | E135: 0 | F135: 1 | G135: =Таблица1[[#This Row],[Оплачено случаев]]-Таблица1[[#This Row],[План ДВН, чел.]] -> -1 | H135: =ROUND(Таблица1[[#This Row],[Оплачено случаев]]/Таблица1[[#This Row],[План ДВН, чел.]]*100,1) -> 0
A136: Июль | B136: ДВН | C136: ЧУЗ "Больница "РЖД - Медицина" | D136: 12 | E136: 23.28503 | F136: 26 | G136: =Таблица1[[#This Row],[Оплачено случаев]]-Таблица1[[#This Row],[План ДВН, чел.]] -> -14 | H136: =ROUND(Таблица1[[#This Row],[Оплачено случаев]]/Таблица1[[#This Row],[План ДВН, чел.]]*100,1) -> 46.2
A137: Июль | B137: ДВН | C137: КБ № 8 ФМБА | D137: 997 | E137: 1942.34752 | F137: 729 | G137: =Таблица1[[#This Row],[Оплачено случаев]]-Таблица1[[#This Row],[План ДВН, чел.]] -> 268 | H137: =ROUND(Таблица1[[#This Row],[Оплачено случаев]]/Таблица1[[#This Row],[План ДВН, чел.]]*100,1) -> 136.8
A138: Июль | B138: ДВН | C138: ЦРБ Бабынинского района | D138: 148 | E138: 305.33681 | F138: 116 | G138: =Таблица1[[#This Row],[Оплачено случаев]]-Таблица1[[#This Row],[План ДВН, чел.]] -> 32 | H138: =ROUND(Таблица1[[#This Row],[Оплачено случаев]]/Таблица1[[#This Row],[План ДВН, чел.]]*100,1) -> 127.6
A139: Июль | B139: ДВН | C139: ЦРБ Боровского района | D139: 160 | E139: 353.65913 | F139: 12 | G139: =Таблица1[[#This Row],[Оплачено случаев]]-Таблица1[[#This Row],[План ДВН, чел.]] -> 148 | H139: =ROUND(Таблица1[[#This Row],[Оплачено случаев]]/Таблица1[[#This Row],[План ДВН, чел.]]*100,1) -> 1333.3
A140: Июль | B140: ДВН | C140: ЦРБ Жуковского района | D140: 76 | E140: 168.65376 | F140: 82 | G140: =Таблица1[[#This Row],[Оплачено случаев]]-Таблица1[[#This Row],[План ДВН, чел.]] -> -6 | H140: =ROUND(Таблица1[[#This Row],[Оплачено случаев]]/Таблица1[[#This Row],[План ДВН, чел.]]*100,1) -> 92.7
A141: Июль | B141: ДВН | C141: ГП "Город Кременки" | D141: 37 | E141: 85.86573 | F141: 28 | G141: =Таблица1[[#This Row],[Оплачено случаев]]-Таблица1[[#This Row],[План ДВН, чел.]] -> 9 | H141: =ROUND(Таблица1[[#This Row],[Оплачено случаев]]/Таблица1[[#This Row],[План ДВН, чел.]]*100,1) -> 132.1
A142: Июль | B142: ДВН | C142: ЦРБ Малоярославецкого района | D142: 88 | E142: 175.28644 | F142: 160 | G142: =Таблица1[[#This Row],[Оплачено случаев]]-Таблица1[[#This Row],[План ДВН, чел.]] -> -72 | H142: =ROUND(Таблица1[[#This Row],[Оплачено случаев]]/Таблица1[[#This Row],[План ДВН, чел.]]*100,1) -> 55
A143: Июль | B143: ДВН | C143: ЦРБ Тарусского района | D143: 41 | E143: 93.20206 | F143: 81 | G143: =Таблица1[[#This Row],[Оплачено случаев]]-Таблица1[[#This Row],[План ДВН, чел.]] -> -40 | H143: =ROUND(Таблица1[[#This Row],[Оплачено случаев]]/Таблица1[[#This Row],[План ДВН, чел.]]*100,1) -> 50.6
A144: Август | B144: ДВН | C144: ЦМБ № 1 | D144: =AS4 -> 139 | E144: =AT4 -> 290.62702 | F144: =AU4 -> 157 | G144: =Таблица1[[#This Row],[Оплачено случаев]]-Таблица1[[#This Row],[План ДВН, чел.]] -> -18 | H144: =ROUND(Таблица1[[#This Row],[Оплачено случаев]]/Таблица1[[#This Row],[План ДВН, чел.]]*100,1) -> 88.5
A145: Август | B145: ДВН | C145: ЦМБ № 2 | D145: 134 | E145: 273.43761 | F145: 200 | G145: =Таблица1[[#This Row],[Оплачено случаев]]-Таблица1[[#This Row],[План ДВН, чел.]] -> -66 | H145: =ROUND(Таблица1[[#This Row],[Оплачено случаев]]/Таблица1[[#This Row],[План ДВН, чел.]]*100,1) -> 67
A146: Август | B146: ДВН | C146: ЦМБ № 3 | D146: 123 | E146: 245.04077 | F146: 165 | G146: =Таблица1[[#This Row],[Оплачено случаев]]-Таблица1[[#This Row],[План ДВН, чел.]] -> -42 | H146: =ROUND(Таблица1[[#This Row],[Оплачено случаев]]/Таблица1[[#This Row],[План ДВН, чел.]]*100,1) -> 74.5
A147: Август | B147: ДВН | C147: ЦМБ № 4 | D147: 12 | E147: 26.93688 | F147: 42 | G147: =Таблица1[[#This Row],[Оплачено случаев]]-Таблица1[[#This Row],[План ДВН, чел.]] -> -30 | H147: =ROUND(Таблица1[[#This Row],[Оплачено случаев]]/Таблица1[[#This Row],[План ДВН, чел.]]*100,1) -> 28.6
A148: Август | B148: ДВН | C148: ЦМБ № 5 | D148: 110 | E148: 232.16806 | F148: 186 | G148: =Таблица1[[#This Row],[Оплачено случаев]]-Таблица1[[#This Row],[План ДВН, чел.]] -> -76 | H148: =ROUND(Таблица1[[#This Row],[Оплачено случаев]]/Таблица1[[#This Row],[План ДВН, чел.]]*100,1) -> 59.1
A149: Август | B149: ДВН | C149: ЦМБ № 6 | D149: 163 | E149: 323.87378 | F149: 160 | G149: =Таблица1[[#This Row],[Оплачено случаев]]-Таблица1[[#This Row],[План ДВН, чел.]] -> 3 | H149: =ROUND(Таблица1[[#This Row],[Оплачено случаев]]/Таблица1[[#This Row],[План ДВН, чел.]]*100,1) -> 101.9
A150: Август | B150: ДВН | C150: КГБ № 5 | D150: 797 | E150: 1602.89023 | F150: 1288 | G150: =Таблица1[[#This Row],[Оплачено случаев]]-Таблица1[[#This Row],[План ДВН, чел.]] -> -491 | H150: =ROUND(Таблица1[[#This Row],[Оплачено случаев]]/Таблица1[[#This Row],[План ДВН, чел.]]*100,1) -> 61.9
A151: Август | B151: ДВН | C151: КГКБ № 4 | D151: 573 | E151: 1179.79943 | F151: 430 | G151: =Таблица1[[#This Row],[Оплачено случаев]]-Таблица1[[#This Row],[План ДВН, чел.]] -> 143 | H151: =ROUND(Таблица1[[#This Row],[Оплачено случаев]]/Таблица1[[#This Row],[План ДВН, чел.]]*100,1) -> 133.3
A152: Август | B152: ДВН | C152: Городская поликлиника | D152: 288 | E152: 608.99058 | F152: 323 | G152: =Таблица1[[#This Row],[Оплачено случаев]]-Таблица1[[#This Row],[План ДВН, чел.]] -> -35 | H152: =ROUND(Таблица1[[#This Row],[Оплачено случаев]]/Таблица1[[#This Row],[План ДВН, чел.]]*100,1) -> 89.2
A153: Август | B153: ДВН | C153: МСЧ № 1 г. Калуги | D153: 0 | E153: 0 | F153: 55 | G153: =Таблица1[[#This Row],[Оплачено случаев]]-Таблица1[[#This Row],[План ДВН, чел.]] -> -55 | H153: =ROUND(Таблица1[[#This Row],[Оплачено случаев]]/Таблица1[[#This Row],[План ДВН, чел.]]*100,1) -> 0
A154: Август | B154: ДВН | C154: МСЧ № 2 г. Калуги | D154: 0 | E154: 0 | F154: 1 | G154: =Таблица1[[#This Row],[Оплачено случаев]]-Таблица1[[#This Row],[План ДВН, чел.]] -> -1 | H154: =ROUND(Таблица1[[#This Row],[Оплачено случаев]]/Таблица1[[#This Row],[План ДВН, чел.]]*100,1) -> 0
A155: Август | B155: ДВН | C155: МСЧ МВД | D155: 0 | E155: 0 | F155: 1 | G155: =Таблица1[[#This Row],[Оплачено случаев]]-Таблица1[[#This Row],[План ДВН, чел.]] -> -1 | H155: =ROUND(Таблица1[[#This Row],[Оплачено случаев]]/Таблица1[[#This Row],[План ДВН, чел.]]*100,1) -> 0
A156: Август | B156: ДВН | C156: ЧУЗ "Больница "РЖД - Медицина" | D156: 16 | E156: 33.34981 | F156: 26 | G156: =Таблица1[[#This Row],[Оплачено случаев]]-Таблица1[[#This Row],[План ДВН, чел.]] -> -10 | H156: =ROUND(Таблица1[[#This Row],[Оплачено случаев]]/Таблица1[[#This Row],[План ДВН, чел.]]*100,1) -> 61.5
A157: Август | B157: ДВН | C157: КБ № 8 ФМБА | D157: 915 | E157: 1830.43006 | F157: 729 | G157: =Таблица1[[#This Row],[Оплачено случаев]]-Таблица1[[#This Row],[План ДВН, чел.]] -> 186 | H157: =ROUND(Таблица1[[#This Row],[Оплачено случаев]]/Таблица1[[#This Row],[План ДВН, чел.]]*100,1) -> 125.5
A158: Август | B158: ДВН | C158: ЦРБ Бабынинского района | D158: 307 | E158: 639.3687 | F158: 62 | G158: =Таблица1[[#This Row],[Оплачено случаев]]-Таблица1[[#This Row],[План ДВН, чел.]] -> 245 | H158: =ROUND(Таблица1[[#This Row],[Оплачено случаев]]/Таблица1[[#This Row],[План ДВН, чел.]]*100,1) -> 495.2
A159: Август | B159: ДВН | C159: ЦРБ Боровского района | D159: 144 | E159: 288.85565 | F159: 12 | G159: =Таблица1[[#This Row],[Оплачено случаев]]-Таблица1[[#This Row],[План ДВН, чел.]] -> 132 | H159: =ROUND(Таблица1[[#This Row],[Оплачено случаев]]/Таблица1[[#This Row],[План ДВН, чел.]]*100,1) -> 1200
A160: Август | B160: ДВН | C160: ЦРБ Жуковского района | D160: 68 | E160: 147.15862 | F160: 82 | G160: =Таблица1[[#This Row],[Оплачено случаев]]-Таблица1[[#This Row],[План ДВН, чел.]] -> -14 | H160: =ROUND(Таблица1[[#This Row],[Оплачено случаев]]/Таблица1[[#This Row],[План ДВН, чел.]]*100,1) -> 82.9
A161: Август | B161: ДВН | C161: ГП "Город Кременки" | D161: 29 | E161: 63.93105 | F161: 28 | G161: =Таблица1[[#This Row],[Оплачено случаев]]-Таблица1[[#This Row],[План ДВН, чел.]] -> 1 | H161: =ROUND(Таблица1[[#This Row],[Оплачено случаев]]/Таблица1[[#This Row],[План ДВН, чел.]]*100,1) -> 103.6
A162: Август | B162: ДВН | C162: ЦРБ Малоярославецкого района | D162: 116 | E162: 244.56083 | F162: 160 | G162: =Таблица1[[#This Row],[Оплачено случаев]]-Таблица1[[#This Row],[План ДВН, чел.]] -> -44 | H162: =ROUND(Таблица1[[#This Row],[Оплачено случаев]]/Таблица1[[#This Row],[План ДВН, чел.]]*100,1) -> 72.5
A163: Август | B163: ДВН | C163: ЦРБ Тарусского района | D163: 42 | E163: 91.87705 | F163: 25 | G163: =Таблица1[[#This Row],[Оплачено случаев]]-Таблица1[[#This Row],[План ДВН, чел.]] -> 17 | H163: =ROUND(Таблица1[[#This Row],[Оплачено случаев]]/Таблица1[[#This Row],[План ДВН, чел.]]*100,1) -> 168
A164: Сентябрь | B164: ДВН | C164: ЦМБ № 1 | D164: =AX4 -> 115 | E164: =AY4 -> 240.80429 | F164: =AZ4 -> 125 | G164: =Таблица1[[#This Row],[Оплачено случаев]]-Таблица1[[#This Row],[План ДВН, чел.]] -> -10 | H164: =ROUND(Таблица1[[#This Row],[Оплачено случаев]]/Таблица1[[#This Row],[План ДВН, чел.]]*100,1) -> 92
A165: Сентябрь | B165: ДВН | C165: ЦМБ № 2 | D165: 246 | E165: 476.29136 | F165: 200 | G165: =Таблица1[[#This Row],[Оплачено случаев]]-Таблица1[[#This Row],[План ДВН, чел.]] -> 46 | H165: =ROUND(Таблица1[[#This Row],[Оплачено случаев]]/Таблица1[[#This Row],[План ДВН, чел.]]*100,1) -> 123
A166: Сентябрь | B166: ДВН | C166: ЦМБ № 3 | D166: 74 | E166: 153.86297 | F166: 165 | G166: =Таблица1[[#This Row],[Оплачено случаев]]-Таблица1[[#This Row],[План ДВН, чел.]] -> -91 | H166: =ROUND(Таблица1[[#This Row],[Оплачено случаев]]/Таблица1[[#This Row],[План ДВН, чел.]]*100,1) -> 44.8
A167: Сентябрь | B167: ДВН | C167: ЦМБ № 4 | D167: 28 | E167: 56.29839 | F167: 42 | G167: =Таблица1[[#This Row],[Оплачено случаев]]-Таблица1[[#This Row],[План ДВН, чел.]] -> -14 | H167: =ROUND(Таблица1[[#This Row],[Оплачено случаев]]/Таблица1[[#This Row],[План ДВН, чел.]]*100,1) -> 66.7
A168: Сентябрь | B168: ДВН | C168: ЦМБ № 5 | D168: 56 | E168: 117.00561 | F168: 223 | G168: =Таблица1[[#This Row],[Оплачено случаев]]-Таблица1[[#This Row],[План ДВН, чел.]] -> -167 | H168: =ROUND(Таблица1[[#This Row],[Оплачено случаев]]/Таблица1[[#This Row],[План ДВН, чел.]]*100,1) -> 25.1
A169: Сентябрь | B169: ДВН | C169: ЦМБ № 6 | D169: 134 | E169: 277.17279 | F169: 160 | G169: =Таблица1[[#This Row],[Оплачено случаев]]-Таблица1[[#This Row],[План ДВН, чел.]] -> -26 | H169: =ROUND(Таблица1[[#This Row],[Оплачено случаев]]/Таблица1[[#This Row],[План ДВН, чел.]]*100,1) -> 83.8
A170: Сентябрь | B170: ДВН | C170: КГБ № 5 | D170: 975 | E170: 1913.30692 | F170: 1288 | G170: =Таблица1[[#This Row],[Оплачено случаев]]-Таблица1[[#This Row],[План ДВН, чел.]] -> -313 | H170: =ROUND(Таблица1[[#This Row],[Оплачено случаев]]/Таблица1[[#This Row],[План ДВН, чел.]]*100,1) -> 75.7
A171: Сентябрь | B171: ДВН | C171: КГКБ № 4 | D171: 532 | E171: 1113.22133 | F171: 430 | G171: =Таблица1[[#This Row],[Оплачено случаев]]-Таблица1[[#This Row],[План ДВН, чел.]] -> 102 | H171: =ROUND(Таблица1[[#This Row],[Оплачено случаев]]/Таблица1[[#This Row],[План ДВН, чел.]]*100,1) -> 123.7
A172: Сентябрь | B172: ДВН | C172: Городская поликлиника | D172: 298 | E172: 645.42852 | F172: 323 | G172: =Таблица1[[#This Row],[Оплачено случаев]]-Таблица1[[#This Row],[План ДВН, чел.]] -> -25 | H172: =ROUND(Таблица1[[#This Row],[Оплачено случаев]]/Таблица1[[#This Row],[План ДВН, чел.]]*100,1) -> 92.3
A173: Сентябрь | B173: ДВН | C173: МСЧ № 1 г. Калуги | D173: 0 | E173: 0 | F173: 120 | G173: =Таблица1[[#This Row],[Оплачено случаев]]-Таблица1[[#This Row],[План ДВН, чел.]] -> -120 | H173: =ROUND(Таблица1[[#This Row],[Оплачено случаев]]/Таблица1[[#This Row],[План ДВН, чел.]]*100,1) -> 0
A174: Сентябрь | B174: ДВН | C174: МСЧ № 2 г. Калуги | D174: 0 | E174: 0 | F174: 1 | G174: =Таблица1[[#This Row],[Оплачено случаев]]-Таблица1[[#This Row],[План ДВН, чел.]] -> -1 | H174: =ROUND(Таблица1[[#This Row],[Оплачено случаев]]/Таблица1[[#This Row],[План ДВН, чел.]]*100,1) -> 0
A175: Сентябрь | B175: ДВН | C175: МСЧ МВД | D175: 0 | E175: 0 | F175: 1 | G175: =Таблица1[[#This Row],[Оплачено случаев]]-Таблица1[[#This Row],[План ДВН, чел.]] -> -1 | H175: =ROUND(Таблица1[[#This Row],[Оплачено случаев]]/Таблица1[[#This Row],[План ДВН, чел.]]*100,1) -> 0
A176: Сентябрь | B176: ДВН | C176: ЧУЗ "Больница "РЖД - Медицина" | D176: 45 | E176: 95.45354 | F176: 26 | G176: =Таблица1[[#This Row],[Оплачено случаев]]-Таблица1[[#This Row],[План ДВН, чел.]] -> 19 | H176: =ROUND(Таблица1[[#This Row],[Оплачено случаев]]/Таблица1[[#This Row],[План ДВН, чел.]]*100,1) -> 173.1
A177: Сентябрь | B177: ДВН | C177: КБ № 8 ФМБА | D177: 1412 | E177: 2791.8744 | F177: 729 | G177: =Таблица1[[#This Row],[Оплачено случаев]]-Таблица1[[#This Row],[План ДВН, чел.]] -> 683 | H177: =ROUND(Таблица1[[#This Row],[Оплачено случаев]]/Таблица1[[#This Row],[План ДВН, чел.]]*100,1) -> 193.7
A178: Сентябрь | B178: ДВН | C178: ЦРБ Бабынинского района | D178: 67 | E178: 141.02173 | F178: 62 | G178: =Таблица1[[#This Row],[Оплачено случаев]]-Таблица1[[#This Row],[План ДВН, чел.]] -> 5 | H178: =ROUND(Таблица1[[#This Row],[Оплачено случаев]]/Таблица1[[#This Row],[План ДВН, чел.]]*100,1) -> 108.1
A179: Сентябрь | B179: ДВН | C179: ЦРБ Боровского района | D179: 172 | E179: 365.46785 | F179: 328 | G179: =Таблица1[[#This Row],[Оплачено случаев]]-Таблица1[[#This Row],[План ДВН, чел.]] -> -156 | H179: =ROUND(Таблица1[[#This Row],[Оплачено случаев]]/Таблица1[[#This Row],[План ДВН, чел.]]*100,1) -> 52.4
A180: Сентябрь | B180: ДВН | C180: ЦРБ Жуковского района | D180: 177 | E180: 380.15841 | F180: 82 | G180: =Таблица1[[#This Row],[Оплачено случаев]]-Таблица1[[#This Row],[План ДВН, чел.]] -> 95 | H180: =ROUND(Таблица1[[#This Row],[Оплачено случаев]]/Таблица1[[#This Row],[План ДВН, чел.]]*100,1) -> 215.9
A181: Сентябрь | B181: ДВН | C181: ГП "Город Кременки" | D181: 19 | E181: 39.07461 | F181: 28 | G181: =Таблица1[[#This Row],[Оплачено случаев]]-Таблица1[[#This Row],[План ДВН, чел.]] -> -9 | H181: =ROUND(Таблица1[[#This Row],[Оплачено случаев]]/Таблица1[[#This Row],[План ДВН, чел.]]*100,1) -> 67.9
A182: Сентябрь | B182: ДВН | C182: ЦРБ Малоярославецкого района | D182: 122 | E182: 237.49152 | F182: 160 | G182: =Таблица1[[#This Row],[Оплачено случаев]]-Таблица1[[#This Row],[План ДВН, чел.]] -> -38 | H182: =ROUND(Таблица1[[#This Row],[Оплачено случаев]]/Таблица1[[#This Row],[План ДВН, чел.]]*100,1) -> 76.3
A183: Сентябрь | B183: ДВН | C183: ЦРБ Тарусского района | D183: 49 | E183: 99.05509 | F183: 30 | G183: =Таблица1[[#This Row],[Оплачено случаев]]-Таблица1[[#This Row],[План ДВН, чел.]] -> 19 | H183: =ROUND(Таблица1[[#This Row],[Оплачено случаев]]/Таблица1[[#This Row],[План ДВН, чел.]]*100,1) -> 163.3
A184: Октябрь | B184: ДВН | C184: ЦМБ № 1 | D184: =BC4 -> 152 | E184: =BD4 -> 309.97319 | F184: =BE4 -> 152 | G184: =Таблица1[[#This Row],[Оплачено случаев]]-Таблица1[[#This Row],[План ДВН, чел.]] -> 0 | H184: =ROUND(Таблица1[[#This Row],[Оплачено случаев]]/Таблица1[[#This Row],[План ДВН, чел.]]*100,1) -> 100
A185: Октябрь | B185: ДВН | C185: ЦМБ № 2 | D185: 201 | E185: 399.94567 | F185: 200 | G185: =Таблица1[[#This Row],[Оплачено случаев]]-Таблица1[[#This Row],[План ДВН, чел.]] -> 1 | H185: =ROUND(Таблица1[[#This Row],[Оплачено случаев]]/Таблица1[[#This Row],[План ДВН, чел.]]*100,1) -> 100.5
A186: Октябрь | B186: ДВН | C186: ЦМБ № 3 | D186: 82 | E186: 165.52928 | F186: 165 | G186: =Таблица1[[#This Row],[Оплачено случаев]]-Таблица1[[#This Row],[План ДВН, чел.]] -> -83 | H186: =ROUND(Таблица1[[#This Row],[Оплачено случаев]]/Таблица1[[#This Row],[План ДВН, чел.]]*100,1) -> 49.7
A187: Октябрь | B187: ДВН | C187: ЦМБ № 4 | D187: 56 | E187: 122.81861 | F187: 42 | G187: =Таблица1[[#This Row],[Оплачено случаев]]-Таблица1[[#This Row],[План ДВН, чел.]] -> 14 | H187: =ROUND(Таблица1[[#This Row],[Оплачено случаев]]/Таблица1[[#This Row],[План ДВН, чел.]]*100,1) -> 133.3
A188: Октябрь | B188: ДВН | C188: ЦМБ № 5 | D188: 146 | E188: 299.67039 | F188: 188 | G188: =Таблица1[[#This Row],[Оплачено случаев]]-Таблица1[[#This Row],[План ДВН, чел.]] -> -42 | H188: =ROUND(Таблица1[[#This Row],[Оплачено случаев]]/Таблица1[[#This Row],[План ДВН, чел.]]*100,1) -> 77.7
A189: Октябрь | B189: ДВН | C189: ЦМБ № 6 | D189: 226 | E189: 452.38972 | F189: 160 | G189: =Таблица1[[#This Row],[Оплачено случаев]]-Таблица1[[#This Row],[План ДВН, чел.]] -> 66 | H189: =ROUND(Таблица1[[#This Row],[Оплачено случаев]]/Таблица1[[#This Row],[План ДВН, чел.]]*100,1) -> 141.3
A190: Октябрь | B190: ДВН | C190: КГБ № 5 | D190: 192 | E190: 374.73405 | F190: 814 | G190: =Таблица1[[#This Row],[Оплачено случаев]]-Таблица1[[#This Row],[План ДВН, чел.]] -> -622 | H190: =ROUND(Таблица1[[#This Row],[Оплачено случаев]]/Таблица1[[#This Row],[План ДВН, чел.]]*100,1) -> 23.6
A191: Октябрь | B191: ДВН | C191: КГКБ № 4 | D191: 924 | E191: 1880.11957 | F191: 430 | G191: =Таблица1[[#This Row],[Оплачено случаев]]-Таблица1[[#This Row],[План ДВН, чел.]] -> 494 | H191: =ROUND(Таблица1[[#This Row],[Оплачено случаев]]/Таблица1[[#This Row],[План ДВН, чел.]]*100,1) -> 214.9
A192: Октябрь | B192: ДВН | C192: Городская поликлиника | D192: 411 | E192: 861.74831 | F192: 323 | G192: =Таблица1[[#This Row],[Оплачено случаев]]-Таблица1[[#This Row],[План ДВН, чел.]] -> 88 | H192: =ROUND(Таблица1[[#This Row],[Оплачено случаев]]/Таблица1[[#This Row],[План ДВН, чел.]]*100,1) -> 127.2
A193: Октябрь | B193: ДВН | C193: МСЧ № 1 г. Калуги | D193: 1 | E193: 1.78183 | F193: 120 | G193: =Таблица1[[#This Row],[Оплачено случаев]]-Таблица1[[#This Row],[План ДВН, чел.]] -> -119 | H193: =ROUND(Таблица1[[#This Row],[Оплачено случаев]]/Таблица1[[#This Row],[План ДВН, чел.]]*100,1) -> 0.8
A194: Октябрь | B194: ДВН | C194: МСЧ № 2 г. Калуги | D194: 0 | E194: 0 | F194: 1 | G194: =Таблица1[[#This Row],[Оплачено случаев]]-Таблица1[[#This Row],[План ДВН, чел.]] -> -1 | H194: =ROUND(Таблица1[[#This Row],[Оплачено случаев]]/Таблица1[[#This Row],[План ДВН, чел.]]*100,1) -> 0
A195: Октябрь | B195: ДВН | C195: МСЧ МВД | D195: 0 | E195: 0 | F195: 1 | G195: =Таблица1[[#This Row],[Оплачено случаев]]-Таблица1[[#This Row],[План ДВН, чел.]] -> -1 | H195: =ROUND(Таблица1[[#This Row],[Оплачено случаев]]/Таблица1[[#This Row],[План ДВН, чел.]]*100,1) -> 0
A196: Октябрь | B196: ДВН | C196: ЧУЗ "Больница "РЖД - Медицина" | D196: 93 | E196: 191.50892 | F196: 26 | G196: =Таблица1[[#This Row],[Оплачено случаев]]-Таблица1[[#This Row],[План ДВН, чел.]] -> 67 | H196: =ROUND(Таблица1[[#This Row],[Оплачено случаев]]/Таблица1[[#This Row],[План ДВН, чел.]]*100,1) -> 357.7
A197: Октябрь | B197: ДВН | C197: КБ № 8 ФМБА | D197: 1400 | E197: 2746.67884 | F197: 729 | G197: =Таблица1[[#This Row],[Оплачено случаев]]-Таблица1[[#This Row],[План ДВН, чел.]] -> 671 | H197: =ROUND(Таблица1[[#This Row],[Оплачено случаев]]/Таблица1[[#This Row],[План ДВН, чел.]]*100,1) -> 192
A198: Октябрь | B198: ДВН | C198: ЦРБ Бабынинского района | D198: 56 | E198: 106.47338 | F198: 62 | G198: =Таблица1[[#This Row],[Оплачено случаев]]-Таблица1[[#This Row],[План ДВН, чел.]] -> -6 | H198: =ROUND(Таблица1[[#This Row],[Оплачено случаев]]/Таблица1[[#This Row],[План ДВН, чел.]]*100,1) -> 90.3
A199: Октябрь | B199: ДВН | C199: ЦРБ Боровского района | D199: 126 | E199: 275.79358 | F199: 325 | G199: =Таблица1[[#This Row],[Оплачено случаев]]-Таблица1[[#This Row],[План ДВН, чел.]] -> -199 | H199: =ROUND(Таблица1[[#This Row],[Оплачено случаев]]/Таблица1[[#This Row],[План ДВН, чел.]]*100,1) -> 38.8
A200: Октябрь | B200: ДВН | C200: ЦРБ Жуковского района | D200: 299 | E200: 610.15918 | F200: 82 | G200: =Таблица1[[#This Row],[Оплачено случаев]]-Таблица1[[#This Row],[План ДВН, чел.]] -> 217 | H200: =ROUND(Таблица1[[#This Row],[Оплачено случаев]]/Таблица1[[#This Row],[План ДВН, чел.]]*100,1) -> 364.6
... 43 more rows

Sheet Все МО (hidden)
A1: Месяц | B1: Ноябрь
A3: Названия строк | B3: Оплачено случаев | C3: План ДВН, чел.
A4: МСЧ МВД | B4: 0 | C4: 1
A5: МСЧ № 2 г. Калуги | B5: 0 | C5: 1
A6: МСЧ № 1 г. Калуги | B6: 6 | C6: 120
A7: ГП "Город Кременки" | B7: 17 | C7: 22
A8: ЦРБ Тарусского района | B8: 28 | C8: 10
A9: ЦРБ Бабынинского района | B9: 57 | C9: 62
A10: ЧУЗ "Больница "РЖД - Медицина" | B10: 73 | C10: 29
A11: ЦМБ № 4 | B11: 98 | C11: 40
A12: ЦМБ № 1 | B12: 101 | C12: 127
A13: ЦРБ Малоярославецкого района | B13: 154 | C13: 140
A14: ЦМБ № 5 | B14: 186 | C14: 150
A15: ЦМБ № 3 | B15: 219 | C15: 152
A16: ЦРБ Боровского района | B16: 339 | C16: 309
A17: ЦМБ № 2 | B17: 363 | C17: 187
A18: Городская поликлиника | B18: 452 | C18: 325
A19: ЦМБ № 6 | B19: 453 | C19: 157
A20: ЦРБ Жуковского района | B20: 606 | C20: 82
A21: КГКБ № 4 | B21: 773 | C21: 400
A22: КГБ № 5 | B22: 1018 | C22: 815
A23: КБ № 8 ФМБА | B23: 1294 | C23: 704
A24: Общий итог | B24: 6237 | C24: 3833

Sheet 10 лучших (hidden)
A1: Месяц | B1: Ноябрь
A3: Названия строк | B3: % выполнения
A4: Городская поликлиника | B4: 139.1
A5: ЦМБ № 3 | B5: 144.1
A6: КБ № 8 ФМБА | B6: 183.8
A7: КГКБ № 4 | B7: 193.3
A8: ЦМБ № 2 | B8: 194.1
A9: ЦМБ № 4 | B9: 245
A10: ЧУЗ "Больница "РЖД - Медицина" | B10: 251.7
A11: ЦРБ Тарусского района | B11: 280
A12: ЦМБ № 6 | B12: 288.5
A13: ЦРБ Жуковского района | B13: 739
A14: Общий итог | B14: 265.86

Sheet 10 худших (hidden)
A1: Месяц | B1: Ноябрь
A3: Названия строк | B3: % выполнения
A4: МСЧ № 2 г. Калуги | B4: 0
A5: МСЧ МВД | B5: 0
A6: МСЧ № 1 г. Калуги | B6: 5
A7: ГП "Город Кременки" | B7: 77.3
A8: ЦМБ № 1 | B8: 79.5
A9: ЦРБ Бабынинского района | B9: 91.9
A10: ЦРБ Боровского района | B10: 109.7
A11: ЦРБ Малоярославецкого района | B11: 110
A12: ЦМБ № 5 | B12: 124
A13: КГБ № 5 | B13: 124.9
A14: Общий итог | B14: 72.23

Sheet Помесячно по МО (hidden)
A1: Выполнение ДВН
A3: Названия строк | B3: Оплачено случаев | C3: План ДВН, чел. | D3: Отклонение
A4: Январь | B4: 406 | C4: 203 | D4: 203
A5: Февраль | B5: 489 | C5: 562 | D5: -73
A6: Март | B6: 512 | C6: 562 | D6: -50
A7: Апрель | B7: 446 | C7: 562 | D7: -116
A8: Май | B8: 426 | C8: 562 | D8: -136
A9: Июнь | B9: 373 | C9: 562 | D9: -189
A10: Июль | B10: 427 | C10: 562 | D10: -135
A11: Август | B11: 288 | C11: 323 | D11: -35
A12: Сентябрь | B12: 298 | C12: 323 | D12: -25
A13: Октябрь | B13: 411 | C13: 323 | D13: 88
A14: Ноябрь | B14: 452 | C14: 325 | D14: 127
A15: Декабрь | B15: 550 | C15: 0 | D15: 550
A16: Общий итог | B16: 5078 | C16: 4869 | D16: 209

Sheet Дашборд ДВН
A2: ПРОФИЛАКТИЧЕСКИЕ ОСМОТРЫ ВЗРОСЛОГО НАСЕЛЕНИЯ В 2023 ГОДУ
